Cogmind - Beta 16 @@@ ROGUE MODE // 2025.11.11 @ 23:52:01 Player: MolePlayingNice Result: Destroyed by P-80 Master with Gamma Rifle Performance ------------- Evolutions (9) 4500 Regions Visited (37) 7400 Robots Destroyed (478) 2390 Value Destroyed (25918) 25918 Prototype IDs (140) 2800 Alien Tech Used (6) 1200 Bonus (22403) 22403 TOTAL SCORE: 66611 Bonus ------- Triggered High Security 1000 High Alert Combat Kills 12606 Follower Combat Kills 3640 Network Hubs Disabled 400 Met Data Miner 300 Met Imprinter 300 Was Imprinted 300 Met Zhirov 300 Built Enhanced Grunts 300 A7 Reached Mainframe 300 Met R17 at Cetus 500 Used Core Reset Matrix 3000 Friendly Fire -543 Cogmind --------- Core Integrity 0/1600 Matter 43/300 Energy 100/100 System Corruption 25% Temperature Cool (0) Movement Core (50) Location -1/Access Parts ------- > --- POWER (3) -------- (None) > --- PROPULSION (6) --- (None) > --- UTILITY (10) ----- (None) > --- WEAPON (6) ------- (None) > --- INVENTORY (5) ---- Experimental Antimatter Reactor Advanced Kinecellerator Graphene Brace Subatomic Replicator Concept Smart ZDS Peak State ------------ > --- POWER ------------ Experimental Antimatter Reactor Concept Zero-point Core Concept Zero-point Core > --- PROPULSION ------- Experimental VSS Leg Experimental VSS Leg Experimental Armored Exoskeleton > --- UTILITY ---------- Concept Thermoelectric Network Concept Antigrav Storage Unit Experimental Sensor Array Advanced Signal Interpreter Concept Core Analysis Suite Experimental Weapon Cycler Concept Cloak Mesh Concept Cloak Mesh Centrium Medium Armor Plating Centrium Medium Armor Plating > --- WEAPON ----------- Concept Plasma Driver Concept Plasma Driver Concept XC Strikerail Concept XC Strikerail Concept XC Strikerail Concept XC Strikerail > --- INVENTORY -------- Experimental Antimatter Reactor Concept Zero-point Core Concept Chromion Battery Concept Chromion Battery YI-UF0's Bottomless Matter Pit Concept Countertargeting System Concept Networked Targeting System Mini Quantum Capacitor Advanced Powered Armor Advanced Force Field Concept Network Penetrator Concept Network Penetrator Concept Matter Streamer Crosscalibrator High-powered Transdimensional Reconstructor High-powered Transdimensional Reconstructor Subatomic Replicator Concept Lightning Penetrator Concept Plasma Driver Perforator Concept Smart ZDS [Rating: 306] Favorites ----------- Power Quantum Reactor Engine Cooled Deuterium Engine Power Core Neutrino Core Reactor Quantum Reactor Propulsion Improved Titanium Leg Treads Light Treads Leg Improved Titanium Leg Wheel Wheel Utility Advanced Signal Interpreter Device Experimental Sensor Array Storage High-capacity Storage Unit Processor Advanced Signal Interpreter Hackware System Shield Protection Centrium Medium Armor Plating Weapon Zionite Laser-M Energy Gun Zionite Laser-M Energy Cannon Concept Plasma Driver Ballistic Gun Precision Assault Rifle Ballistic Cannon Light Cannon Launcher Heavy Shock Bomb Launcher Special Weapon Mining Laser Slashing Weapon Chainsword Build | -11 -10 -10 -9 -9 -9 -8 -8 -7 -7 -7 -7 -7 -7 -6 -6 -6 -6 -6 -5 -5 -5 -5 -5 -5 -5 -4 -4 -4 -4 -4 -4 -3 -3 -2 -2 -2 -1 ------- Run | Yrd Mat Min Mat Min Exi Min Mat Fac Was Fac Low Low Zio Pro Fac Low Low Dat Pro Fac Was Fac Upp Upp Zhi Pro Fac Ext Cet Arc Hub Res Qua Res Tes Frg Acc Slots Evolved 18 | . . . 2 . . . 2 2 . . . . . . 2 . . . . 2 . . . . . . 2 . . . . 2 . 2 . . 2 Power 2 | . . . . . . . . . . . . . . . . . . . . 1 . . . . . . . . . . . . . . . . 1 Propulsion 4 | . . . 1 . . . . 1 . . . . . . 1 . . . . . . . . . . . . . . . . . . . . . 1 Utility 8 | . . . 1 . . . 1 1 . . . . . . 1 . . . . 1 . . . . . . 1 . . . . 2 . . . . . Weapon 4 | . . . . . . . 1 . . . . . . . . . . . . . . . . . . . 1 . . . . . . 2 . . . Parts Attached 349 | . 9 3 26 4 . 5 19 4 2 22 . 1 3 1 16 3 8 . . 6 9 11 3 6 5 1 15 17 7 3 . 19 9 26 6 53 27 Power 41 | . 1 . 5 . . 1 2 . . 3 . 1 . . 1 . 1 . . 2 1 1 1 . 1 . 2 3 2 1 . 1 2 3 1 3 2 Engine 12 | . 1 . 3 . . . 2 . . 2 . 1 . . 1 . . . . 2 . . . . . . . . . . . . . . . . . Core 13 | . . . 2 . . 1 . . . 1 . . . . . . 1 . . . . 1 1 . . . 1 2 . . . . . . . 1 2 Reactor 16 | . . . . . . . . . . . . . . . . . . . . . 1 . . . 1 . 1 1 2 1 . 1 2 3 1 2 . Propulsion 67 | . 2 1 10 . . 3 3 1 1 7 . . 2 . 6 2 . . . 1 2 . . . 2 . . 1 1 . . 6 2 4 1 3 6 Treads 17 | . 2 1 7 . . 3 3 . . 1 . . . . . . . . . . . . . . . . . . . . . . . . . . . Leg 47 | . . . 3 . . . . 1 1 6 . . 2 . 6 2 . . . 1 2 . . . 2 . . 1 1 . . 5 2 4 1 3 4 Wheel 3 | . . . . . . . . . . . . . . . . . . . . . . . . . . . . . . . . 1 . . . . 2 Hover . | . . . . . . . . . . . . . . . . . . . . . . . . . . . . . . . . . . . . . . Flight . | . . . . . . . . . . . . . . . . . . . . . . . . . . . . . . . . . . . . . . Utility 159 | . 1 1 3 2 . 1 7 3 1 4 . . . 1 6 1 3 . . 3 2 5 1 6 2 1 10 8 2 1 . 11 5 17 2 32 17 Device 82 | . . 1 2 . . 1 5 . 1 . . . . . 1 1 . . . 1 2 3 1 3 1 . 5 2 1 1 . 4 4 12 1 16 13 Storage 10 | . 1 . . 1 . . 1 . . . . . . . 1 . . . . . . . . . . 1 . 1 . . . 1 . 1 . 1 1 Processor 11 | . . . 1 . . . 1 . . . . . . . 2 . . . . . . . . . . . . . . . . 2 . . . 4 1 Hackware 6 | . . . . . . . . 1 . . . . . 1 1 . . . . . . 1 . . . . 1 . . . . . . . . . 1 Protection 50 | . . . . 1 . . . 2 . 4 . . . . 1 . 3 . . 2 . 1 . 3 1 . 4 5 1 . . 4 1 4 1 11 1 Artifact . | . . . . . . . . . . . . . . . . . . . . . . . . . . . . . . . . . . . . . . Weapon 82 | . 5 1 8 2 . . 7 . . 8 . . 1 . 3 . 4 . . . 4 5 1 . . . 3 5 2 1 . 1 . 2 2 15 2 Energy Gun 41 | . 2 . 6 . . . 5 . . 1 . . . . . . 4 . . . 4 2 1 . . . 2 4 2 1 . . . 1 . 6 . Energy Cannon 10 | . . 1 . . . . . . . . . . . . 2 . . . . . . 1 . . . . 1 . . . . 1 . . 1 3 . Ballistic Gun 16 | . 1 . . 2 . . . . . 5 . . 1 . 1 . . . . . . . . . . . . . . . . . . . . 5 1 Ballistic Cannon 4 | . 1 . 1 . . . . . . . . . . . . . . . . . . 1 . . . . . . . . . . . . 1 . . Launcher 6 | . 1 . 1 . . . 1 . . . . . . . . . . . . . . 1 . . . . . . . . . . . . . 1 1 Special Weapon 2 | . . . . . . . 1 . . . . . . . . . . . . . . . . . . . . 1 . . . . . . . . . Impact Weapon . | . . . . . . . . . . . . . . . . . . . . . . . . . . . . . . . . . . . . . . Slashing Weapon 3 | . . . . . . . . . . 2 . . . . . . . . . . . . . . . . . . . . . . . 1 . . . Piercing Weapon . | . . . . . . . . . . . . . . . . . . . . . . . . . . . . . . . . . . . . . . Special Melee Weapon . | . . . . . . . . . . . . . . . . . . . . . . . . . . . . . . . . . . . . . . Unidentified Prototypes 47 | . . . 2 1 . . . . . 2 . . . . . . . . . . . . . . 6 . 2 4 5 . . 2 3 3 2 11 4 Parts Lost 70 | . 2 1 7 . . 4 5 . 1 5 . . . . 3 . . . . . . . 1 . . 1 2 . . . . . . 2 1 11 24 Power 9 | . 1 . 1 . . 1 2 . . . . . . . 1 . . . . . . . . . . . 2 . . . . . . . . . 1 Propulsion 19 | . . 1 3 . . 3 1 . 1 2 . . . . . . . . . . . . . . . . . . . . . . . . 1 1 6 Utility 22 | . . . . . . . 1 . . 1 . . . . 1 . . . . . . . . . . 1 . . . . . . . 2 . 5 11 Weapon 20 | . 1 . 3 . . . 1 . . 2 . . . . 1 . . . . . . . 1 . . . . . . . . . . . . 5 6 Highest Loss Streak 16 | . 1 1 2 . . 2 1 . 1 4 . . . . 1 . . . . . . . 1 . . 1 1 . . . . . . 1 1 3 16 To Critical Strikes . | . . . . . . . . . . . . . . . . . . . . . . . . . . . . . . . . . . . . . . Average Backups 17 | 6 10 14 14 15 15 13 14 14 9 13 13 14 14 13 16 17 19 20 20 18 19 19 19 19 19 19 19 19 20 19 19 18 19 19 19 20 22 Power . | 1 1 2 1 1 1 . . 1 . . 1 1 1 1 . . . 1 1 . 2 1 1 1 1 1 . . 1 1 1 . . . . 1 1 Propulsion 1 | 4 6 6 3 2 2 . 1 . . . 2 2 2 2 3 4 3 3 3 3 1 . 1 1 . 1 1 2 1 1 1 1 1 1 . . . Utility 8 | . . 2 2 4 5 5 6 7 5 6 6 6 6 5 6 7 8 9 9 8 8 9 11 11 10 9 10 10 10 11 11 12 12 11 11 10 12 Weapon 4 | 1 2 3 4 6 6 6 5 5 2 5 4 5 5 4 5 5 7 7 7 7 7 7 6 6 5 6 5 5 5 4 4 2 2 1 1 5 4 Tool/Special . | . . . . . . . . . . . . . . . . . . . . . . . . . . . . . . . . . . . . . . Unused Backups 80 | . 5 2 8 1 . . 8 . 5 10 1 . . 1 2 . 2 . 1 . 1 3 . 1 1 . 1 1 1 . 2 3 4 . 2 10 4 Power 9 | . 1 . 1 . . . . . 1 . . . . . . . 1 . . . 1 . . . . . . . . . . 1 . . 1 1 1 Propulsion 15 | . 2 2 3 . . . 1 . . . . . . . 1 . . . . . . . . . . . . . 1 . . . 1 . 1 3 . Utility 35 | . 2 . 3 . . . 5 . 3 5 1 . . 1 . . . . . . . 2 . 1 1 . . 1 . . 2 2 1 . . 3 2 Weapon 15 | . . . 1 . . . 1 . 1 5 . . . . 1 . 1 . 1 . . 1 . . . . . . . . . . 1 . . 2 . Tool/Special 6 | . . . . 1 . . 1 . . . . . . . . . . . . . . . . . . . 1 . . . . . 1 . . 1 1 Average Slot Usage (%) 90 | . 85 98 96 100 100 99 98 99 67 93 100 100 97 99 98 100 95 93 93 95 84 81 82 81 68 82 81 79 84 84 84 90 99 96 99 90 76 Engine 3 | . 14 14 10 11 11 4 7 7 2 5 7 7 7 7 6 6 5 6 6 5 5 2 . . . . . . . . . . . . . . . Core 2 | . . . . . . 6 . . . . . . . . . . . . . 4 1 2 7 11 6 5 4 6 8 3 . . . . . 1 10 Reactor 2 | . . . . . . . . . . . . . . . . . . . . . 3 5 3 . 3 5 4 . 1 6 10 9 9 8 8 6 . Treads 5 | . 22 27 29 33 33 32 27 29 15 7 . . . . . . . . . . . . . . . . . . . . . . . . . . . Leg 15 | . 5 . 1 . . . . . 8 19 30 30 30 30 32 33 33 33 33 29 13 10 11 11 10 11 9 10 10 10 10 13 23 21 21 16 12 Device 16 | . . 12 11 9 11 11 12 7 15 16 15 15 15 14 10 5 6 6 6 11 13 16 16 17 16 17 20 19 15 15 15 19 18 20 19 21 25 Storage 6 | . 14 14 11 11 11 11 9 7 2 7 7 7 7 7 6 6 6 6 6 5 5 5 5 5 5 5 5 5 5 5 5 4 4 4 4 4 5 Processor 9 | . . . 9 11 11 11 9 7 7 7 7 7 7 7 6 13 13 13 13 11 11 11 11 11 11 11 10 10 10 10 10 13 14 13 13 6 5 Protection 6 | . . . . 1 . . 5 6 2 5 7 7 7 7 11 13 9 6 6 6 8 5 5 4 5 5 4 5 10 10 10 9 8 4 5 8 2 Energy Gun 13 | . 11 13 18 18 22 22 25 23 9 . 6 7 6 7 2 6 14 20 20 17 17 14 17 16 4 17 19 20 20 21 21 18 18 18 20 7 . Energy Cannon 1 | . . . 1 . . . . . . . . . . . 5 6 2 . . . . 1 . . . . . . . . . . . 1 4 3 4 Ballistic Gun 4 | . 10 . . 3 . . . . . 17 15 15 13 15 10 6 2 . . . . . . . . . . . . . . . . . . 8 8 Peak Build Rating 306 | 6 7 9 28 29 23 25 35 40 44 60 55 54 59 60 72 71 73 73 74 85 106 111 110 108 114 117 130 137 149 153 154 171 166 196 193 287 306 Average Rating 114 | 6 6 8 22 23 23 23 28 38 30 52 54 53 55 59 68 68 72 73 73 82 101 103 107 105 96 114 125 128 140 149 153 159 163 187 183 226 247 On Entrance 86 | 6 6 7 9 23 23 23 23 30 37 27 55 54 53 59 59 65 71 73 73 74 85 105 109 107 108 113 114 127 135 146 153 154 161 164 183 185 274 Avg Prop Armor Cover (%) 11 | . . . . . . . . 3 31 10 . . . . . . . . . . . . . . . . . . . . . 14 . . . . 3 Naked Turns 10 | . . . . . . . . . . . . . . . . . . . . . . . . . . . . . . . . . . . . . 10 Heaviest Build 172 | 11 28 30 36 39 35 35 43 45 46 54 54 54 53 53 87 86 88 88 88 99 106 111 107 98 102 103 113 100 101 108 108 128 122 136 144 172 167 Greatest Support 164 | 20 40 40 66 62 62 62 60 80 60 70 58 58 78 78 96 98 98 98 98 100 110 110 110 110 120 120 120 120 118 113 113 142 142 148 150 150 164 Greatest Overweight (x) 14 | . 1 . 1 . . . . . 1 2 . . . . 1 . . . . . . 4 . . 4 . 1 . . . . 12 . . 1 2 14 Average Overweight (x) . | . . . . . . . . . . . . . . . . . . . . . . . . . . . . . . . . 1 . . . . . Largest Inventory Capacity 25 | 8 15 15 15 15 15 15 15 15 15 15 15 15 15 15 20 20 20 20 20 20 20 20 20 20 20 20 20 20 20 20 20 20 20 20 20 25 25 Average Capacity 18 | 8 14 15 15 15 15 15 15 15 8 15 15 15 15 15 18 20 20 20 20 20 20 20 20 20 20 20 20 20 20 20 20 20 20 20 20 22 24 Most Carried 25 | 6 15 15 15 15 15 15 15 15 14 15 15 15 15 15 20 20 20 20 20 20 20 20 20 20 20 20 20 20 20 20 20 20 20 20 20 25 25 Average Carried 18 | 6 10 14 14 14 15 13 14 14 8 13 14 15 15 14 17 18 19 20 20 18 19 19 19 19 19 19 19 19 19 19 19 19 19 19 19 21 23 Final Capacity 25 | 8 15 15 15 15 15 15 15 15 5 15 15 15 15 15 20 20 20 20 20 20 20 20 20 20 20 20 20 20 20 20 20 20 20 20 20 25 5 Final Carried 25 | 6 14 15 15 15 15 13 15 15 5 15 15 15 15 14 20 20 20 20 20 20 20 20 20 20 20 19 20 20 20 20 20 19 20 20 19 25 5 Class Distribution -------------------- 18% | Mutant 17% | Tank 14% | Skirmisher 11% | Messiah-Skirmisher 8% | Scavenger-Executioner 6% | Messiah-Executioner 5% | Derelict-Tank 3% | Messiah-Tank Dominant Class ---------------- Mutant | -10/Materials Mutant | -10/Mines Mutant | -9/Materials Mutant | -9/Mines Mutant | -9/Exiles Mutant | -8/Mines Tank | -8/Materials Skirmisher | -7/Factory Mutant | -7/Waste Skirmisher | -7/Factory Skirmisher | -7/Lower Caves Skirmisher | -7/Lower Caves Skirmisher | -7/Zion Skirmisher | -6/Proximity Caves Tank | -6/Factory Tank | -6/Lower Caves Gunner | -6/Lower Caves Gunner | -6/Data Miner Gunner | -5/Proximity Caves Derelict-Tank | -5/Factory Tank | -5/Waste Tank | -5/Factory Tank | -5/Upper Caves Derelict-Tank | -5/Upper Caves Mutant | -5/Zhirov Derelict-Skirmisher | -4/Proximity Caves Derelict-Skirmisher | -4/Factory Tank | -4/Extension Commander-Tank | -4/Cetus Messiah-Skirmisher | -4/Archives Messiah-Skirmisher | -4/Hub_04(d) Messiah-Skirmisher | -3/Research Messiah-Skirmisher | -3/Quarantine Messiah-Assassin | -2/Research Messiah-Executioner | -2/Testing Scavenger-Executioner | -2/Protoforge Scavenger-Executioner | -1/Access Resources | -11 -10 -10 -9 -9 -9 -8 -8 -7 -7 -7 -7 -7 -7 -6 -6 -6 -6 -6 -5 -5 -5 -5 -5 -5 -5 -4 -4 -4 -4 -4 -4 -3 -3 -2 -2 -2 -1 ----------- Run | Yrd Mat Min Mat Min Exi Min Mat Fac Was Fac Low Low Zio Pro Fac Low Low Dat Pro Fac Was Fac Upp Upp Zhi Pro Fac Ext Cet Arc Hub Res Qua Res Tes Frg Acc Matter Collected 20157 | 200 128 190 524 290 . 211 611 69 71 1656 200 264 152 133 395 262 145 . . 30 180 141 158 214 . 285 315 416 166 110 30 455 647 867 217 7025 3400 Remotely 1766 | . . . . . . . . . . . . . . . . . . . . . . . . . . . . . . . . . . . . 409 1357 Salvage Created 23724 | . 499 95 1275 240 . 314 1123 69 . 1331 44 45 . . 706 55 140 . 264 . 340 429 61 469 . 212 711 226 91 407 . 1061 888 687 421 7127 4394 Parts 1153 | . 24 7 86 25 . 6 53 . . 88 4 4 . . 26 1 4 . 4 . 1 11 2 22 . 7 16 18 5 20 . 51 50 27 17 348 226 Haulers Intercepted 6 | . . . 1 . . . 2 . . 2 . . . . 1 . . . . . . . . . . . . . . . . . . . . . . Recyclers Shooed 10 | . 1 . . . . . 1 . . 1 . . . . 3 . . . . . . . . . . . 1 1 . . . . . 1 . . 1 Parts Field Recycled . | . . . . . . . . . . . . . . . . . . . . . . . . . . . . . . . . . . . . . . Retrieved Matter . | . . . . . . . . . . . . . . . . . . . . . . . . . . . . . . . . . . . . . . Parts Self-Destructed 43 | . . . . . . . . . . . 4 4 . 5 . 6 6 . 4 . . . 2 5 . 7 . . . . . . . . . . . Prevented 14 | . . . . . . . . . . . . . . 1 . 4 . . . . . . . 9 . . . . . . . . . . . . . Parts Restored 11 | . . . . . . . . . . . . . . . . . . . . . . . . . . . . . . . . . . . . 11 . Faulty 11 | . . . . . . . . . . . . . . . . . . . . . . . . . . . . . . . . . . . . 11 . Kills | -11 -10 -10 -9 -9 -9 -8 -8 -7 -7 -7 -7 -7 -7 -6 -6 -6 -6 -6 -5 -5 -5 -5 -5 -5 -5 -4 -4 -4 -4 -4 -4 -3 -3 -2 -2 -2 -1 ------- Run | Yrd Mat Min Mat Min Exi Min Mat Fac Was Fac Low Low Zio Pro Fac Low Low Dat Pro Fac Was Fac Upp Upp Zhi Pro Fac Ext Cet Arc Hub Res Qua Res Tes Frg Acc Combat Hostiles Destroyed 396 | . 13 3 39 8 . 5 21 1 . 22 2 1 . . 7 1 6 . 6 . . 12 1 10 . 3 8 6 . 2 . 10 12 3 5 112 77 Melee 3 | . . . . . . . . . . 1 . . . . . . . . . . . . . . . . . . . . . . . . . . 2 Guns 172 | . 7 . 20 5 . 4 11 1 . 19 2 1 . . 3 . 2 . 4 . . 5 1 1 . 2 4 3 . 2 . 10 10 2 3 41 9 Cannons 91 | . 3 2 1 . . . . . . . . . . . 2 1 . . . . . 2 . . . . 1 . . . . . . . 1 41 37 AOE 92 | . 3 1 18 3 . . 6 . . 2 . . . . . . 3 . . . . 5 . 9 . . . 3 . . . . . . . 15 24 Classes Destroyed 31 | . 4 1 6 . . 1 1 . . 2 . . . . 1 . . . 1 . . 1 . 1 . . . . . . . . . . . 8 4 Worker 12 | . . . 3 . . . 1 . . 2 . . . . . . . . . . . 1 . . . . . . . . . 1 . . . 2 2 Builder 23 | . . . 2 1 . . 1 . . 2 . . . . 1 . . . . . . 1 . . . . . 1 . . . 5 . 1 . 5 3 Tunneler 2 | . . 1 1 . . . . . . . . . . . . . . . . . . . . . . . . . . . . . . . . . . Hauler 6 | . . . 1 . . . 2 . . 2 . . . . 1 . . . . . . . . . . . . . . . . . . . . . . Recycler 15 | . 2 . 1 1 . . 2 . . 2 . . . . 1 . . . . . . . . . . . 1 . . . . 1 . 3 . . 1 Carrier 3 | . . . . . . . . . . . . . . . . . . . . . . . . . . . . . . . . . . . . 2 1 Mechanic 4 | . . . . . . . . . . . . . . . . . . . . . . . . . . . . . . . . . . . . 1 3 Operator 12 | . . . 1 . . . . . . 1 . . . . . . . . . . . 1 . . . . . . . 7 . . 1 1 . . . Drone 13 | . . . . . . . . . . . . . . . . . . . 2 . . . . . . . . . . . . . . . . 11 . Watcher 13 | . 1 . 1 . . . 1 . . . . . . . 1 . . . . . . . . . . . 1 . 2 . . 2 . . . 2 2 Swarmer 60 | . 6 1 13 7 . . 6 . . 3 2 . . . 1 . 4 . . . . . . 5 . . . 5 . . . . . . . 2 5 Cutter 6 | . . . . . . . . . . . . . . . . . . . . . . . . . . . . . . . . . . . . . 6 Saboteur 3 | . . . . . . . . . . . . . . . . . . . . . . . . . . . . . . . . . . . . . 3 Grunt 100 | . 7 2 19 . . 4 10 . . 7 . . . . . 1 2 . 3 . . . . 4 . . . 1 . . . 2 3 . . 16 19 Brawler 10 | . . . . . . . 1 . . . . . . . . . . . 1 . . . . . . . . . . . . . 1 . . 5 2 Duelist 4 | . . . . . . . . . . . . . . . . . . . . . . . . . . . . . . . . . . . . 2 2 Protector 8 | . . . 1 . . . . . . . . . . . . . . . . . . . . . . . . . . . . . . . . 3 4 Researcher 2 | . . . . . . . . . . . . . . . . . . . . . . . . . . . . . . . . . . . . 2 . Sentry 39 | . . . 6 . . . 4 1 . 2 . . . . . . . . . . . 1 . . . . 3 . . 2 . 3 . 1 . 14 2 Specialist 2 | . . . . . . . . . . . . . . . . . . . . . . . . . . . . . . . . . . . . . 2 Hunter 29 | . . . . . . 1 . . . 3 . . . . 4 . . . . . . . 1 . . . 2 . . . . . 2 1 2 6 7 Programmer 74 | . . . . . . . . . . 5 . 1 . . 1 . . . . . . 2 . . . 2 3 . . . . 5 6 1 3 30 15 Heavy 3 | . . . . . . . . . . 2 . . . . . . . . . . . . . . . . . . . . . . . . . . 1 Behemoth 3 | . . . . . . . . . . . . . . . 1 . . . . . . . . . . 1 . . . . . . . . . . 1 Hotshot 4 | . . . . . . . . . . . . . . . . . . . . . . . . . . . . . . . . . . . . 4 . Decapitator 9 | . . . . . . . . . . . . . . . . . . . . . . . . . . . . . . . . . . . . 9 . Immortal 3 | . . . . . . . . . . . . . . . . . . . . . . . . . . . . . . . . . . . . 3 . Investigator 1 | . . . . . . . . . . . . . . . . . . . . . . . . . . . . . . . . . . . . . 1 Striker 5 | . . . . . . . . . . . . . . . . . . . . . . . . . . . . . . . . . . . . . 5 Executioner 3 | . . . . . . . . . . . . . . . . . . . . . . . . . . . . . . . . . . . . . 3 Alpha 7 2 | . . . . . . . . . . . . . . . . . . . . . . . . . . . . . . . . . . . . 2 . V-Series 5 | . . . . . . . . . . . . . . . . . . . . . . . . . . . . . . . . . . . . 5 . Tinkerer 1 | . . . . . . . . . . . . . . . . . . . . . . . . . . . . . . . . . . . . 1 . Assembled 9 | . . . . . . . . . . . . . . . . . . . . . . 9 . . . . . . . . . . . . . . . Thug 1 | . . . . . . . . . . . . . . . 1 . . . . . . . . . . . . . . . . . . . . . . Wizard 1 | . . . . . . . . . . . . . . . . . . . . . . . . . . . . . . . . . . . 1 . . Mutant 1 | . . . . . . . . . . . . . . . . . . . . . . . . 1 . . . . . . . . . . . . . Best Kill Streak 35 | . 7 2 9 4 . 2 6 1 . 9 2 1 . . 4 1 4 . 3 . . 11 1 5 . 1 3 3 1 4 . 4 4 1 2 13 35 Combat Bots Only 33 | . 5 2 5 4 . 2 6 1 . 5 2 1 . . 3 1 4 . 3 . . 9 1 5 . 1 2 3 . 2 . 1 4 1 2 11 33 Max Kills in Single Turn 6 | . 2 2 4 3 . 1 4 1 . 2 1 1 . . 2 1 2 . 1 . . 2 1 4 . 1 1 2 1 2 . 1 2 1 1 4 6 Gunslinging 1 | . . . . . . . . . . . . . . . . . . . . . . . . . . . . . . 1 . . 1 . . 1 . Exploded 5 | . 1 1 3 3 . . 4 . . 1 . . . . . . 2 . . . . 2 . 4 . . . 2 . . . . . . . 4 5 Melee 1 | . . . . . . . . . . 1 . . . . . . . . . . . . . . . . . . . . . . . . . . 1 Uniques/NPCs Destroyed 1 | . . . . 1 . . . . . . . . . . . . . . . . . . . . . . . . . . . . . . . . . YI-UF0 (-9/Mines) Combat | -11 -10 -10 -9 -9 -9 -8 -8 -7 -7 -7 -7 -7 -7 -6 -6 -6 -6 -6 -5 -5 -5 -5 -5 -5 -5 -4 -4 -4 -4 -4 -4 -3 -3 -2 -2 -2 -1 -------- Run | Yrd Mat Min Mat Min Exi Min Mat Fac Was Fac Low Low Zio Pro Fac Low Low Dat Pro Fac Was Fac Upp Upp Zhi Pro Fac Ext Cet Arc Hub Res Qua Res Tes Frg Acc Hostile Shots Fired 2034 | . 74 7 148 35 . 41 78 27 1 153 6 4 . . 103 13 21 . 39 . . 55 6 26 . 28 71 17 2 1 . 48 104 28 48 438 412 Missed 639 | . 16 1 48 11 . 12 20 9 . 47 2 2 . . 38 7 5 . 12 . . 8 . 5 . 7 32 5 . 1 . 22 43 12 17 130 127 Hits 1395 | . 58 6 100 24 . 29 58 18 1 106 4 2 . . 65 6 16 . 27 . . 47 6 21 . 21 39 12 2 . . 26 61 16 31 308 285 Melee 40 | . . . . . . . . . 1 . . . . . . . . . . . . 7 . . . . . . . . . . . . . 13 19 Projectile 1355 | . 58 6 100 24 . 29 58 18 . 106 4 2 . . 65 6 16 . 27 . . 40 6 21 . 21 39 12 2 . . 26 61 16 31 295 266 AOE 41 | . . . . 17 . . . . . . . . . . 2 . . . . . . 16 . . . . 1 . . . . . . . . . 5 Critical Strikes 85 | . . . 3 . . 1 1 . 1 2 . 1 . . 1 . 1 . 3 . . 2 . 1 . 2 2 . . . . 1 1 . 3 33 26 Actively Blocked 20 | . . . . . . . . . . . . . . . . . . . . . . . . . . . . . . . . . . . 2 14 4 Part Disruptions 9 | . . . . . . . . . . . . . . . . . . . . . . 1 . 1 . . . . . . . . 1 . 1 4 1 Damage Taken 25734 | . 666 86 1231 647 . 500 1071 122 55 1837 61 30 . 21 1156 107 260 . 496 . . 1153 75 248 . 498 737 334 54 33 . 569 950 258 481 6154 5844 Core 3247 | . 93 16 143 78 . 89 241 32 . 158 . . . . 69 19 . . 14 . . 18 12 12 . 74 73 . . . . 74 111 10 54 397 1460 Absorbed by Shields 5751 | . . . . . . . . . . . . . . . . . . . . . . 352 29 95 . 59 32 96 26 . . 59 269 268 474 2020 1972 Redirected to Shielding 687 | . . . . . . . . . . . . . . . . . . . . . . . . . . . . 35 15 . . 87 183 55 129 183 . Ignored by Resistances 107 | . . . . . . . . . . . . . . . . . . . . . . . . . . . . . . . . . . . . 107 . Regen/Repaired (Parts) 1139 | . . . 11 . . . . 110 . . . . 8 . . . . . . . . 969 . . . . . . . . . . 18 23 . . . Core Remaining (%) 71 | 100 . 56 . . . 22 56 . . . . . . 72 . . . . 88 . . . . . . 88 . . . . 93 . 85 . . 58 . Volleys Fired 1292 | . 50 9 94 18 . 26 51 3 . 59 4 3 . . 58 11 9 . 16 . 14 53 6 13 . 11 36 16 8 14 10 101 45 28 46 331 149 Largest 6 | . 2 2 2 2 . 2 3 3 . 3 3 3 . . 3 3 3 . 3 . 3 3 3 3 . 3 4 4 4 4 4 4 4 6 5 6 6 Hottest 516 | . 80 70 112 112 . 112 175 168 . 84 136 136 . . 203 203 225 . 225 . 225 247 237 237 . 243 331 324 266 292 292 292 292 459 365 516 408 Shots Fired 2882 | . 95 16 176 35 . 52 141 9 . 172 14 9 . . 114 23 23 . 48 . 42 86 10 20 . 33 90 44 23 56 12 235 112 68 76 817 231 Gun 2278 | . 73 7 152 34 . 52 135 9 . 169 14 9 . . 58 12 16 . 48 . 42 46 10 11 . 33 70 42 20 56 12 235 105 60 68 591 89 Cannon 531 | . 18 7 12 . . . . . . . . . . . 56 11 5 . . . . 35 . . . . 20 . . . . . 7 8 8 209 135 Launcher 70 | . 4 2 12 1 . . 3 . . 3 . . . . . . 2 . . . . 5 . 9 . . . 2 3 . . . . . . 17 7 Special 3 | . . . . . . . 3 . . . . . . . . . . . . . . . . . . . . . . . . . . . . . . Kinetic 771 | . 49 7 6 22 . . 5 . . 169 10 6 . . 35 6 5 . . . . 4 . . . . 7 . . . . . . . . 344 96 Thermal 1565 | . 42 7 158 12 . 52 133 9 . . 4 3 . . 79 17 16 . 48 . 42 77 10 11 . 33 70 42 20 31 2 94 44 28 22 331 128 Explosive 45 | . 4 2 12 1 . . 3 . . 3 . . . . . . 2 . . . . . . . . . . . . . . . . . . 11 7 Electromagnetic 124 | . . . . . . . . . . . . . . . . . . . . . . 5 . 9 . . 13 2 3 . . . 7 8 8 69 . Phasic 377 | . . . . . . . . . . . . . . . . . . . . . . . . . . . . . . 25 10 141 61 32 46 62 . Robot Hit Streak 37 | . 6 8 10 5 . 24 27 13 . 31 3 3 . . 18 12 10 . 8 . 15 11 3 11 . 17 13 14 6 12 . 16 9 10 7 37 25 Robot Miss Streak 16 | . 5 2 4 2 . 4 3 . . 4 4 2 . . 3 3 3 . 5 . 1 2 3 . . 2 2 1 1 1 . 5 2 3 3 16 6 Penetration Max 3 | . . . . . . . . . . . . . . . . . . . . . . . . . . . . . . . . . . . . 2 3 Secondary Targets 35 | . 1 . 2 2 . . 4 . . 7 . . . . . . . . 1 . . . . . . . . . . 1 . . 2 . 1 13 1 Max Gunslinging Chain 1 | . 1 . 1 1 . . 1 . . 1 . . . . . . . . 1 . . . . . . . . . . 1 . . 1 . 1 1 1 Capacitor 79 | . . . . . . . . . . . . . . . . . . . . . . . . . . . . . . . . . . . . . 79 Shots Hit Robots 1586 | . 50 11 105 21 . 44 94 9 . 123 6 4 . . 62 13 16 . 32 . 36 31 3 8 . 24 63 30 11 38 . 86 63 46 32 406 119 Core Hits 872 | . 24 7 70 14 . 16 44 3 . 59 2 3 . . 31 8 11 . 11 . 2 21 2 19 . 4 19 14 5 17 . 32 22 9 11 236 156 Critical Kills 58 | . . . . . . . . . . 1 . . . . 1 . . . . . . . . . . . . . . . . . . . . 38 18 Critical Parts Destroyed 76 | . . . . . . . . . . 3 . . . . . . . . . . . . . . . . . . . . . . . . . 38 35 Critical Strikes 210 | . 3 1 9 . . 3 11 . . 6 . . . . 1 . . . 4 . 6 3 . . . 6 4 1 . 2 . 5 1 1 1 88 54 Burn 50 | . 3 . 9 . . 3 11 . . . . . . . . . . . 4 . 6 3 . . . 6 4 1 . . . . . . . . . Meltdown 15 | . . . . . . . . . . . . . . . . . . . . . . . . . . . . . . . . . . . . 10 5 Destroy 127 | . . . . . . . . . . 4 . . . . 1 . . . . . . . . . . . . . . . . . . . . 73 49 Blast 1 | . . 1 . . . . . . . . . . . . . . . . . . . . . . . . . . . . . . . . . . . Corrupt 4 | . . . . . . . . . . . . . . . . . . . . . . . . . . . . . . . . . . . 1 3 . Sever 2 | . . . . . . . . . . 2 . . . . . . . . . . . . . . . . . . . . . . . . . . . Intensify 11 | . . . . . . . . . . . . . . . . . . . . . . . . . . . . . . 2 . 5 1 1 . 2 . Melee Attacks 37 | . . . . . . . . . . 21 . . . . . . . . . . . . . . . . . . . . . . . 16 . . . Impact . | . . . . . . . . . . . . . . . . . . . . . . . . . . . . . . . . . . . . . . Slashing 37 | . . . . . . . . . . 21 . . . . . . . . . . . . . . . . . . . . . . . 16 . . . Piercing . | . . . . . . . . . . . . . . . . . . . . . . . . . . . . . . . . . . . . . . Sneak Attacks 6 | . . . . . . . . . . 1 . . . . . . . . . . . . . . . . . . . . . . . 5 . . . Combat Hostiles . | . . . . . . . . . . . . . . . . . . . . . . . . . . . . . . . . . . . . . . Follow-up Attacks 1 | . . . . . . . . . . 1 . . . . . . . . . . . . . . . . . . . . . . . . . . . Damage Inflicted 74291 | . 981 250 2989 482 . 663 1996 155 . 2817 123 92 . . 1709 357 592 . 667 . 776 1212 68 988 . 635 1798 970 403 1467 . 3382 2581 2414 1378 24131 18215 Guns 37270 | . 512 64 1464 322 . 660 1500 155 . 2424 123 92 . . 1076 194 287 . 667 . 776 690 68 175 . 635 1454 742 403 1405 . 3382 2276 1513 1122 11131 1958 Cannons 17406 | . 163 91 126 . . . . . . . . . . . 625 163 128 . . . . 214 . . . . 344 . . . . . 305 134 256 7070 7787 Explosions 18291 | . 292 76 1352 150 . . 453 . . 138 . . . . . . 177 . . . . 308 . 813 . . . 165 . . . . . . . 5912 8455 Melee 999 | . . . . . . . . . . 232 . . . . . . . . . . . . . . . . . . . . . . . 767 . . . Ramming 301 | . 14 19 47 10 . 3 19 . . 23 . . . . 8 . . . . . . . . . . . . 63 . 62 . . . . . 18 15 Kinetic 13489 | . 439 91 55 250 . . 73 . . 2424 78 56 . . 512 82 90 . . . . . . . . . . . . . . . . . . 7083 2256 Thermal 34717 | . 262 64 1535 72 . 660 1551 155 . . 45 36 . . 1189 275 325 . 667 . 776 955 68 417 . 635 1454 742 403 759 . 1824 1136 829 666 9728 7489 Explosive 16783 | . 266 76 1352 150 . . 353 . . 138 . . . . . . 177 . . . . . . . . . . . . . . . . . . 5816 8455 Electromagnetic 3100 | . . . . . . . . . . . . . . . . . . . . . . 257 . 571 . . 344 165 . . . . 305 134 256 1068 . Impact . | . . . . . . . . . . . . . . . . . . . . . . . . . . . . . . . . . . . . . . Slashing 999 | . . . . . . . . . . 232 . . . . . . . . . . . . . . . . . . . . . . . 767 . . . Piercing . | . . . . . . . . . . . . . . . . . . . . . . . . . . . . . . . . . . . . . . Phasic 4902 | . . . . . . . . . . . . . . . . . . . . . . . . . . . . . . 646 . 1558 1140 684 456 418 . Highest Corruption 66 | . . . . . . . . . 7 12 12 13 13 . . . . . . . . 4 4 4 5 5 3 4 4 4 4 4 6 5 8 66 24 Average Corruption 12 | . . . . . . . . . 7 9 12 12 13 . . . . . . . . 2 4 3 5 5 1 3 4 3 4 1 2 4 6 36 6 Corruption Purged 12 | . . . . . . . . . . . . . . . . . . . . . . . . 4 . . . . . 4 . 4 . . . . . Corruption Blocked . | . . . . . . . . . . . . . . . . . . . . . . . . . . . . . . . . . . . . . . Effects 638 | . . . . . . . . . 3 85 12 22 2 . . . . . . . . 4 14 9 5 12 10 40 13 2 22 8 11 23 37 283 21 Message Errors 122 | . . . . . . . . . 1 20 3 5 1 . . . . . . . . 1 5 3 1 4 3 8 1 2 6 1 1 4 9 41 2 Matter Fused 141 | . . . . . . . . . 2 18 1 6 . . . . . . . . . . 3 1 3 4 1 11 6 . 5 2 3 8 6 58 3 Heat Flow Errors 73 | . . . . . . . . . . 8 . 5 . . . . . . . . . . 4 2 . 1 . 6 3 . 1 2 1 3 3 30 4 Energy Discharges 66 | . . . . . . . . . . 12 3 1 1 . . . . . . . . 1 . . 1 2 2 3 1 . 2 . 1 3 5 24 4 Parts Rejected 7 | . . . . . . . . . . 1 . . . . . . . . . . . . . . . . 1 . . . . . . . . 4 1 Parts Fused 7 | . . . . . . . . . . 3 . 1 . . . . . . . . . . . . . . . . 1 . . . . . 1 1 . Data Loss (minor) 52 | . . . . . . . . . . 9 2 . . . . . . . . . . . 1 2 . . 3 7 . . 2 1 3 . 4 15 3 Data Loss (major) 35 | . . . . . . . . . . 8 . 1 . . . . . . . . . . 1 . . . . 2 1 . 2 1 . 2 4 11 2 Misfires 23 | . . . . . . . . . . 3 2 2 . . . . . . . . . 1 . 1 . . . 1 . . . . 2 1 2 8 . Alerts 17 | . . . . . . . . . . . 1 1 . . . . . . . . . 1 . . . 1 . 2 . . 3 1 . . 1 6 . Misdirections 7 | . . . . . . . . . . 1 . . . . . . . . . . . . . . . . . . . . . . . . . 5 1 Weapon Failures 88 | . . . . . . . . . . 2 . . . . . . . . . . . . . . . . . . . . 1 . . 2 2 80 1 Overload Shots 2 | . . . . . . . . . . . . . . . . . . . . . . 2 . . . . . . . . . . . . . . . Overflow Damage 3402 | . . . 43 . . . 78 . . 70 . . . . 11 . . . . . . 25 . 55 . . 47 30 . 35 . . . 490 17 1286 1215 Projectiles 1296 | . . . . . . . . . . . . . . . 11 . . . . . . 10 . . . . 47 . . . . . . . 17 557 654 Explosions 1485 | . . . 43 . . . 78 . . . . . . . . . . . . . . 15 . 55 . . . 4 . . . . . . . 729 561 Melee 621 | . . . . . . . . . . 70 . . . . . . . . . . . . . . . . . 26 . 35 . . . 490 . . . Knockbacks 39 | . 1 2 . . . . 1 . . . . . . . . . . . . . . . . . . . . . . . . . . . . 12 23 Impact 1 | . . . . . . . 1 . . . . . . . . . . . . . . . . . . . . . . . . . . . . . . Kinetic 30 | . 1 1 . . . . . . . . . . . . . . . . . . . . . . . . . . . . . . . . . 12 16 Secondary 8 | . . 1 . . . . . . . . . . . . . . . . . . . . . . . . . . . . . . . . . . 7 Self-Inflicted Damage 633 | . 37 . 71 . . . 211 . . 20 . . . . . . . . . . . 31 . 69 . . . . . . . . . . . . 194 Shots 16 | . 2 . 2 . . . 2 . . 1 . . . . . . . . . . . 2 . 5 . . . . . . . . . . . . 2 Rammed 20 | . 2 3 5 2 . 1 3 . . . . . . . . . . . . . . . . . . . . . . . . . . . . . 4 Targets Rammed 34 | . 2 3 6 2 . 1 4 . . 4 . . . . 1 . . . . . . . . . . . . 2 . 2 . 1 . . . 2 4 Kicked 11 | . . . . . . . . . . 3 . . . . 1 . . . . . . . . . . . . 2 . 2 . 1 . . . 2 . Crushed 3 | . . . 1 . . . 1 . . 1 . . . . . . . . . . . . . . . . . . . . . . . . . . . Highest Temperature 461 | . 183 73 87 3 . 120 252 42 . 217 . 238 . . 169 298 144 . 306 . 210 355 223 229 . 461 284 175 4 . . 260 413 330 128 221 388 Average Temperature 82 | . 59 35 22 2 . 37 68 24 . 92 . 86 . . 56 114 63 . 124 . 82 130 112 108 . 100 106 80 4 . . 78 128 94 61 83 131 Received Heat Transfer 3882 | . 249 48 540 . . 225 450 30 . 369 . . . 9 42 18 63 . 261 . . 166 . 44 . 400 9 7 . 9 . 36 84 12 4 497 310 Thermoelectric Energy+ 940 | . . . . . . . . . . . . . . . . . . . . . . . . . . . . . . . . . . . . 205 735 Effects 8 | . . . . . . . . . . . . . . . . 1 . . . . . 1 . . . 1 1 . . . . . . . . . 4 Shutdowns 1 | . . . . . . . . . . . . . . . . . . . . . . . . . . 1 . . . . . . . . . . . Energy Bleed 5 | . . . . . . . . . . . . . . . . 1 . . . . . 1 . . . . 1 . . . . . . . . . 2 Short Circuit 2 | . . . . . . . . . . . . . . . . . . . . . . . . . . . . . . . . . . . . . 2 Siege Activations . | . . . . . . . . . . . . . . . . . . . . . . . . . . . . . . . . . . . . . . Martial Activations . | . . . . . . . . . . . . . . . . . . . . . . . . . . . . . . . . . . . . . . Shielding Activations . | . . . . . . . . . . . . . . . . . . . . . . . . . . . . . . . . . . . . . . Robots Disrupted 1 | . . . . . . . . . . . . . . . . . . . . . . . . . . . . . . . . . . . . 1 . Combat Hostiles 1 | . . . . . . . . . . . . . . . . . . . . . . . . . . . . . . . . . . . . 1 . Robots Corrupted 12 | . . . . . . . . . . . . . . . . . . . . . . . . . . . 1 . . 1 . . 2 1 1 6 . Combat Hostiles 11 | . . . . . . . . . . . . . . . . . . . . . . . . . . . 1 . . . . . 2 1 1 6 . Parts Fried 23 | . . . . . . . . . . . . . . . . . . . . . . . . 3 . . 2 . . 1 . . 4 2 2 9 . Impact Corruptions 4 | . . . . . . . . . . . . . . . . . . . . . . . . . . . . 1 . 3 . . . . . . . Robots Melted 28 | . . . . . . 1 4 . . . . . . . 2 . 1 . 2 . . . . . . 1 2 . . . . . . . . 10 5 Combat Hostiles 27 | . . . . . . 1 4 . . . . . . . 2 . 1 . 2 . . . . . . 1 2 . . . . . . . . 9 5 Parts Melted 126 | . 3 . 14 . . 7 13 1 . . . . . . 11 . 2 . 6 . . 6 . . . 4 17 . . 2 . 4 1 1 1 22 11 Heat Transferred 42905 | . 975 150 4551 185 . 1887 4207 333 . . 100 75 . . 2225 500 598 . 1480 . 1813 1695 111 496 . 1369 2405 1221 481 851 . 1850 1110 814 592 6786 4045 Parts Sabotaged 16 | . . . . . . . . . . . . . . . . . . . . . . . . . . . . . . . . . . . . . 16 Parts Stolen . | . . . . . . . . . . . . . . . . . . . . . . . . . . . . . . . . . . . . . . Parts Stripped . | . . . . . . . . . . . . . . . . . . . . . . . . . . . . . . . . . . . . . . Power Chain Reactions 4 | . . . . . . . . . . . . . . . . . . . . . . 2 . 2 . . . . . . . . . . . . . Alert | -11 -10 -10 -9 -9 -9 -8 -8 -7 -7 -7 -7 -7 -7 -6 -6 -6 -6 -6 -5 -5 -5 -5 -5 -5 -5 -4 -4 -4 -4 -4 -4 -3 -3 -2 -2 -2 -1 ------- Run | Yrd Mat Min Mat Min Exi Min Mat Fac Was Fac Low Low Zio Pro Fac Low Low Dat Pro Fac Was Fac Upp Upp Zhi Pro Fac Ext Cet Arc Hub Res Qua Res Tes Frg Acc Maximum Alert Level 5 | . 1 . 2 1 . . 1 . . 1 . . . . 1 . . . . 1 . . . . . . . 2 2 1 . . 1 1 3 5 5 Low Security (%) 56 | 100 74 100 23 9 . 100 70 100 100 93 . . . . 57 . . . . . 100 100 . . . . 100 72 . 5 100 100 79 93 10 . . Level 1 14 | . 25 . 23 90 . . 29 . . 6 . . . . 42 . . . . 100 . . . . . . . 6 35 94 . . 20 6 . 15 . Level 2 9 | . . . 52 . . . . . . . . . . . . . . . . . . . . . . . . 21 64 . . . . . 5 14 . Level 3 6 | . . . . . . . . . . . . . . . . . . . . . . . . . . . . . . . . . . . 83 17 . Level 4 1 | . . . . . . . . . . . . . . . . . . . . . . . . . . . . . . . . . . . . 12 . Level 5 6 | . . . . . . . . . . . . . . . . . . . . . . . . . . . . . . . . . . . . 39 4 High Security 4 | . . . . . . . . . . . . . . . . . . . . . . . . . . . . . . . . . . . . 1 95 Max Security . | . . . . . . . . . . . . . . . . . . . . . . . . . . . . . . . . . . . . . . Peak Influence 4670 | . 355 155 664 336 . 60 383 158 . 339 . . . . 380 . . . . 300 73 61 . . . . 49 657 484 313 138 158 267 211 967 3756 4670 Initial 2253 | . . 135 20 243 . . . 158 . . . . . . 154 . . . . 300 73 . . . . . . . 361 144 88 30 86 137 78 450 2253 Average 523 | . 172 45 385 246 . 14 106 79 . 52 . . . . 180 . . . . 257 10 9 . . . . 11 158 412 272 54 83 100 122 767 1539 3147 Influence Increases 18933 | . 597 120 1353 173 . 170 692 40 . 760 50 30 . 215 1058 118 186 . 100 300 . 193 30 230 . 90 271 1155 373 299 355 822 503 552 1240 4171 2687 Destroy 0b10 Robot/C 9360 | . 260 80 880 140 . 100 420 20 . 440 40 20 . 80 400 80 160 . 80 . . 60 20 200 . 60 160 540 160 80 120 300 240 180 400 2120 1520 Destroy 0b10 Robot/NC 695 | . 15 5 65 10 . 10 35 . . 45 . . . 10 45 . . . 10 . . 15 . . . . 10 35 10 35 20 60 5 30 35 115 75 Destroy Leader 1766 | . 42 10 218 20 . 30 96 10 . 142 10 10 . 10 140 20 20 . 10 . . 20 10 30 . 30 62 46 . . 30 78 50 50 44 264 264 Allied During Kill 1508 | . . 13 52 . . . . . . . . . . 100 245 18 6 . . . . . . . . . . 458 170 115 141 54 . 46 78 . 12 Successful Hack 298 | . 22 . 31 . . . 30 10 . 37 . . . . 29 . . . . . . 10 . . . . 14 . . . . 12 17 48 38 . . Select Force Hacks 60 | . 60 . . . . . . . . . . . . . . . . . . . . . . . . . . . . . . . . . . . . Disable Machine 1230 | . 45 . 60 . . . 60 . . 15 . . . . 15 . . . . . . 30 . . . . . 15 15 45 . 90 135 30 105 450 120 Anti-Garrison Action 150 | . . . . . . . . . . . . . . . . . . . . . . . . . . . . . . . . . . . . 150 . Destroy Structure 2936 | . 48 12 47 3 . . 51 . . 21 . . . . 34 . . . . . . 58 . . . . 10 46 18 24 44 228 56 138 525 1012 561 Advance Influence 450 | . . . . . . . . . . . . . . . 150 . . . . 300 . . . . . . . . . . . . . . . . . Partial Spotted 30 | . . . . . . . . . . 15 . . . . . . . . . . . . . . . . 15 . . . . . . . . . . Lose Combat Pursuer 450 | . 105 . . . . 30 . . . 45 . . . 15 . . . . . . . . . . . . . 15 . . . . . 30 15 60 135 Influence Decreases 14393 | . 250 413 781 613 186 170 343 389 . 425 315 100 . 208 695 447 204 23 100 90 210 148 75 156 74 90 271 508 660 406 549 727 413 657 577 1217 1903 Entered New Map 4333 | . . 212 34 383 186 . . 191 . . 125 14 . . 3 137 9 23 . . 137 . 18 . 74 . . . 286 216 165 29 68 107 61 352 1503 Time Decay 8318 | . 230 191 602 230 . 150 303 150 . 375 190 86 . 188 482 270 175 . 100 90 73 148 47 156 . 90 261 348 294 150 284 579 345 470 486 755 20 Lost Part 635 | . 20 10 65 . . 20 40 . . 50 . . . . 30 . . . . . . . 10 . . . 10 . . . . . . 20 10 110 240 Lost Ally 1059 | . . . 80 . . . . . . . . . . 20 180 40 20 . . . . . . . . . . 160 80 40 100 119 . 60 20 . 140 Purge Threat 48 | . . . . . . . . 48 . . . . . . . . . . . . . . . . . . . . . . . . . . . . . Squads Dispatched 156 | . 2 . 9 . . . 5 1 . 12 . . . . 8 . . . . . . 6 . . . . 4 1 . . 5 7 3 5 8 32 48 Investigation 15 | . 2 . 4 . . . 1 . . 1 . . . . 3 . . . . . . 2 . . . . 1 1 . . . . . . . . . Extermination 36 | . . . . . . . . 1 . 5 . . . . 2 . . . . . . 3 . . . . 2 . . . 2 5 2 2 3 9 . Reinforcement 30 | . . . 4 . . . 1 . . 6 . . . . 3 . . . . . . 1 . . . . 1 . . . 3 2 1 1 4 . 3 Assault 67 | . . . 1 . . . . . . . . . . . . . . . . . . . . . . . . . . . . . . 2 1 19 44 Garrison 8 | . . . . . . . 3 . . . . . . . . . . . . . . . . . . . . . . . . . . . . 4 1 Intercept . | . . . . . . . . . . . . . . . . . . . . . . . . . . . . . . . . . . . . . . Searches Triggered . | . . . . . . . . . . . . . . . . . . . . . . . . . . . . . . . . . . . . . . Data Miner Redirects 13 | . . . . . . . . . . . . . . . . . . . . . . . . . . . . . . . . . . . . 13 . Construction Impeded 6 | . . . 1 . . . 1 . . 1 . . . . . . . . . . . . . . . . . . . . . 1 . . 1 . 1 Haulers Reinforced 2 | . . . . . . . . . . . . . . . 1 . . . . . . . . . . . 1 . . . . . . . . . . Active Scanning Responses . | . . . . . . . . . . . . . . . . . . . . . . . . . . . . . . . . . . . . . . Cargo Convoy Interrupts 1 | . . . . . . . . . . 1 . . . . . . . . . . . . . . . . . . . . . . . . . . . Stealth | -11 -10 -10 -9 -9 -9 -8 -8 -7 -7 -7 -7 -7 -7 -6 -6 -6 -6 -6 -5 -5 -5 -5 -5 -5 -5 -4 -4 -4 -4 -4 -4 -3 -3 -2 -2 -2 -1 --------- Run | Yrd Mat Min Mat Min Exi Min Mat Fac Was Fac Low Low Zio Pro Fac Low Low Dat Pro Fac Was Fac Upp Upp Zhi Pro Fac Ext Cet Arc Hub Res Qua Res Tes Frg Acc Distress Signals 29 | . 1 . 4 1 . . 4 . . 1 . . . . 3 . . . . . . . . . . . 2 3 2 . . . . 1 1 . 6 Communications Jammed 29 | . . . . . . . . . . . . . . . . . . . . . . . . . . . . . . . . 5 5 6 12 1 . Distress Signals 27 | . . . . . . . . . . . . . . . . . . . . . . . . . . . . . . . . 5 3 6 12 1 . Times Spotted 643 | . 21 3 61 8 . 7 27 1 4 32 2 1 . 3 23 4 8 . 11 . . 13 1 10 . 3 17 24 9 13 1 22 15 14 11 119 155 Peak Tracking Total 40 | . 6 2 6 4 . 3 5 1 4 4 1 . . 3 4 3 4 . 5 . . 4 1 5 . 1 4 5 5 2 2 3 4 6 2 8 40 Tactical Retreats 23 | . 4 . . . . 2 . . . 3 . . . 1 . . . . . . . . . . . . . 1 . . . . . 2 1 4 5 Traps | -11 -10 -10 -9 -9 -9 -8 -8 -7 -7 -7 -7 -7 -7 -6 -6 -6 -6 -6 -5 -5 -5 -5 -5 -5 -5 -4 -4 -4 -4 -4 -4 -3 -3 -2 -2 -2 -1 ------- Run | Yrd Mat Min Mat Min Exi Min Mat Fac Was Fac Low Low Zio Pro Fac Low Low Dat Pro Fac Was Fac Upp Upp Zhi Pro Fac Ext Cet Arc Hub Res Qua Res Tes Frg Acc Traps Triggered 32 | . . . 2 . . . 1 1 . 2 . . . . 1 . . . . 1 . 1 . . . . 3 4 . . 1 . 1 1 . 10 3 Indirectly 1 | . . . . . . . . . . . . . . . . . . . . . . . . . . . . 1 . . . . . . . . . Trap Hack Attempts . | . . . . . . . . . . . . . . . . . . . . . . . . . . . . . . . . . . . . . . Triggered . | . . . . . . . . . . . . . . . . . . . . . . . . . . . . . . . . . . . . . . Disarmed . | . . . . . . . . . . . . . . . . . . . . . . . . . . . . . . . . . . . . . . Reprogrammed . | . . . . . . . . . . . . . . . . . . . . . . . . . . . . . . . . . . . . . . Reused . | . . . . . . . . . . . . . . . . . . . . . . . . . . . . . . . . . . . . . . Traps Extracted . | . . . . . . . . . . . . . . . . . . . . . . . . . . . . . . . . . . . . . . Installed 2 | . . . . . . . . . . . . . . . . . . . . . . . . . . 2 . . . . . . . . . . . Triggered . | . . . . . . . . . . . . . . . . . . . . . . . . . . . . . . . . . . . . . . Machines | -11 -10 -10 -9 -9 -9 -8 -8 -7 -7 -7 -7 -7 -7 -6 -6 -6 -6 -6 -5 -5 -5 -5 -5 -5 -5 -4 -4 -4 -4 -4 -4 -3 -3 -2 -2 -2 -1 ---------- Run | Yrd Mat Min Mat Min Exi Min Mat Fac Was Fac Low Low Zio Pro Fac Low Low Dat Pro Fac Was Fac Upp Upp Zhi Pro Fac Ext Cet Arc Hub Res Qua Res Tes Frg Acc Machines Disabled 105 | . 3 . 4 . . . 4 . . 1 . . . . 1 . . . . . . 2 . 1 . . . 2 1 3 . 6 9 2 8 50 8 Max in Single Turn 4 | . 3 . 1 . . . 3 . . 1 . . . . . . . . . . . 1 . 1 . . . 1 1 1 . 1 1 1 1 4 1 Garrison Access 6 | . . . . . . . . 1 . . . . . . 1 . . . . . . . . . . . . . . . . . 1 1 1 1 . Network Hub 2 | . . . . . . . . . . . . . . . . . . . . . . . . . . . . . . . 2 . . . . . . Machines Repaired . | . . . . . . . . . . . . . . . . . . . . . . . . . . . . . . . . . . . . . . Machines Dismantled 2 | . . . . . . . . . . . . . . . . . . . . . . . . . . . . 1 1 . . . . . . . . Machines Sabotaged . | . . . . . . . . . . . . . . . . . . . . . . . . . . . . . . . . . . . . . . Overloaded Fab Kills . | . . . . . . . . . . . . . . . . . . . . . . . . . . . . . . . . . . . . . . Hacking | -11 -10 -10 -9 -9 -9 -8 -8 -7 -7 -7 -7 -7 -7 -6 -6 -6 -6 -6 -5 -5 -5 -5 -5 -5 -5 -4 -4 -4 -4 -4 -4 -3 -3 -2 -2 -2 -1 --------- Run | Yrd Mat Min Mat Min Exi Min Mat Fac Was Fac Low Low Zio Pro Fac Low Low Dat Pro Fac Was Fac Upp Upp Zhi Pro Fac Ext Cet Arc Hub Res Qua Res Tes Frg Acc Machines Accessed 70 | . 4 . 9 . 1 . 5 3 . 10 1 . . . 7 . 1 3 . . . 4 . . 4 . 5 . 1 . . 2 3 2 2 3 . Terminals 20 | . 2 . 6 . . . 4 1 . 4 . . . . . . . . . . . . . . . . . . 1 . . . . . . 2 . Fabricators 9 | . . . . . . . . . . 3 . . . . 3 . . . . . . 1 . . . . 1 . . . . 1 . . . . . Repair Stations 6 | . . . 1 . . . . 1 . . . . . . . . . . . . . 1 . . . . 1 . . . . 1 1 . . . . Recycling Units 7 | . 2 . . . . . 1 . . 2 . . . . 1 . . . . . . 1 . . . . . . . . . . . . . . . Scanalyzers 9 | . . . 2 . . . . . . . . . . . 1 . . . . . . . . . . . 2 . . . . . 1 1 1 1 . Garrison Access 9 | . . . . . . . . 1 . 1 . . . . 2 . . . . . . 1 . . . . 1 . . . . . 1 1 1 . . Total Hacks 221 | . 6 . 32 . 1 . 12 8 . 24 1 . . . 25 . 1 24 . . . 12 . . 17 . 12 . 1 . . 8 7 11 8 11 . Successful 124 | . 5 . 16 . 1 . 5 4 . 8 1 . . . 11 . 1 24 . . . 6 . . 17 . 5 . . . . 2 4 4 4 6 . Failed 96 | . 1 . 16 . . . 7 4 . 16 . . . . 14 . . . . . . 6 . . . . 7 . 1 . . 6 3 7 3 5 . Catastrophic 26 | . . . 7 . . . 2 . . 4 . . . . 2 . . . . . . 1 . . . . 2 . 1 . . 2 . 2 2 1 . Database Lockouts 1 | . . . . . . . . . . . . . . . . . . . . . . . . . . . . . . . . . . . 1 . . Manual 160 | . 3 . 10 . . . 7 . . 6 . . . . 28 . . . . . . 12 . . . . 6 12 1 . 13 9 11 14 24 4 . Terminals 51 | . 4 . 14 . . . 11 4 . 10 . . . . . . . . . . . . . . . . . . 1 . . . . . . 7 . Fabricators 23 | . . . . . . . . . . 8 . . . . 9 . . . . . . 3 . . . . 2 . . . . 1 . . . . . Repair Stations 22 | . . . 2 . . . . 3 . . . . . . . . . . . . . 5 . . . . 3 . . . . 7 2 . . . . Recycling Units 12 | . 2 . . . . . 1 . . 4 . . . . 2 . . . . . . 3 . . . . . . . . . . . . . . . Scanalyzers 48 | . . . 16 . . . . . . . . . . . 5 . . . . . . . . . . . 6 . . . . . 3 8 6 4 . Garrison Access 21 | . . . . . . . . 1 . 2 . . . . 9 . . . . . . 1 . . . . 1 . . . . . 2 3 2 . . Terminal Hacks 62 | . 3 . 1 . 1 . 4 1 . 3 1 . . . . . 1 24 . . . . . . 17 . . . . . . . . . . 6 . Record 17 | . . . . . 1 . . . . . . . . . . . . 6 . . . . . . 5 . . . . . . . . . . 5 . Part Schematic 15 | . . . . . . . . . . . . . . . . . . 11 . . . . . . 4 . . . . . . . . . . . . Robot Schematic 4 | . . . . . . . . . . . . . . . . . . 4 . . . . . . . . . . . . . . . . . . . Robot Analysis 4 | . . . . . . . . . . . . . . . . . . . . . . . . . 4 . . . . . . . . . . . . Prototype ID Bank 8 | . 1 . . . . . . . . . . . . . . . . 3 . . . . . . 4 . . . . . . . . . . . . Open Door 2 | . . . . . . . . . . . 1 . . . . . 1 . . . . . . . . . . . . . . . . . . . . Branch Access Points 2 | . 1 . . . . . . . . 1 . . . . . . . . . . . . . . . . . . . . . . . . . . . Scanalyzer Index 1 | . . . 1 . . . . . . . . . . . . . . . . . . . . . . . . . . . . . . . . . . Unreport Threat 1 | . . . . . . . . 1 . . . . . . . . . . . . . . . . . . . . . . . . . . . . . Hauler Manifests 1 | . . . . . . . 1 . . . . . . . . . . . . . . . . . . . . . . . . . . . . . . Registered Components 2 | . . . . . . . 1 . . 1 . . . . . . . . . . . . . . . . . . . . . . . . . . . Registered Prototypes 1 | . . . . . . . 1 . . . . . . . . . . . . . . . . . . . . . . . . . . . . . . Zone Layout 3 | . 1 . . . . . 1 . . 1 . . . . . . . . . . . . . . . . . . . . . . . . . . . Proto ID Catalog 1 | . . . . . . . . . . . . . . . . . . . . . . . . . . . . . . . . . . . . 1 . Fabricator Hacks 10 | . . . . . . . . . . 3 . . . . 4 . . . . . . 1 . . . . 2 . . . . . . . . . . Network Status 1 | . . . . . . . . . . . . . . . 1 . . . . . . . . . . . . . . . . . . . . . . Load Schematic 6 | . . . . . . . . . . 3 . . . . 1 . . . . . . 1 . . . . 1 . . . . . . . . . . Build 3 | . . . . . . . . . . . . . . . 2 . . . . . . . . . . . 1 . . . . . . . . . . Repair Station Hacks 13 | . . . 2 . . . . 2 . . . . . . . . . . . . . 4 . . . . 1 . . . . 2 2 . . . . Scan Component 8 | . . . 1 . . . . 1 . . . . . . . . . . . . . 2 . . . . 1 . . . . 2 1 . . . . Repair 5 | . . . 1 . . . . 1 . . . . . . . . . . . . . 2 . . . . . . . . . . 1 . . . . Recycling Unit Hacks 3 | . . . . . . . 1 . . 2 . . . . . . . . . . . . . . . . . . . . . . . . . . . Retrieve Components 3 | . . . . . . . 1 . . 2 . . . . . . . . . . . . . . . . . . . . . . . . . . . Scanalyzer 22 | . . . 11 . . . . . . . . . . . 2 . . . . . . . . . . . 2 . . . . . 1 4 2 . . Insert Component 3 | . . . 3 . . . . . . . . . . . . . . . . . . . . . . . . . . . . . . . . . . Analyze 3 | . . . 3 . . . . . . . . . . . . . . . . . . . . . . . . . . . . . . . . . . Retrieve Study 16 | . . . 5 . . . . . . . . . . . 2 . . . . . . . . . . . 2 . . . . . 1 4 2 . . Garrison Access Hacks 5 | . . . . . . . . 1 . . . . . . 2 . . . . . . . . . . . . . . . . . 1 . 1 . . Unlock Access 1 | . . . . . . . . . . . . . . . 1 . . . . . . . . . . . . . . . . . . . . . . Seal Access 4 | . . . . . . . . 1 . . . . . . 1 . . . . . . . . . . . . . . . . . 1 . 1 . . Unauthorized Hacks 9 | . 2 . 2 . . . . . . . . . . . 3 . . . . . . 1 . . . . . . . . . . . . 1 . . Terminals 2 | . . . 2 . . . . . . . . . . . . . . . . . . . . . . . . . . . . . . . . . . Botnet 2 | . . . 2 . . . . . . . . . . . . . . . . . . . . . . . . . . . . . . . . . . Fabricators 2 | . . . . . . . . . . . . . . . 1 . . . . . . 1 . . . . . . . . . . . . . . . Prioritize 1 | . . . . . . . . . . . . . . . 1 . . . . . . . . . . . . . . . . . . . . . . Recompile 1 | . . . . . . . . . . . . . . . . . . . . . . 1 . . . . . . . . . . . . . . . Repair Stations . | . . . . . . . . . . . . . . . . . . . . . . . . . . . . . . . . . . . . . . Recycling Units 2 | . 2 . . . . . . . . . . . . . . . . . . . . . . . . . . . . . . . . . . . . Tunnel 2 | . 2 . . . . . . . . . . . . . . . . . . . . . . . . . . . . . . . . . . . . Scanalyzers 1 | . . . . . . . . . . . . . . . . . . . . . . . . . . . . . . . . . . . 1 . . Researchers 1 | . . . . . . . . . . . . . . . . . . . . . . . . . . . . . . . . . . . 1 . . Garrison Access 2 | . . . . . . . . . . . . . . . 2 . . . . . . . . . . . . . . . . . . . . . . Broadcast 1 | . . . . . . . . . . . . . . . 1 . . . . . . . . . . . . . . . . . . . . . . Watchers 1 | . . . . . . . . . . . . . . . 1 . . . . . . . . . . . . . . . . . . . . . . Data Cores Recovered 2 | . . . . . . . . . . . . . . . . . . . . . . . . . . . . 1 . . . . 1 . . . . Used . | . . . . . . . . . . . . . . . . . . . . . . . . . . . . . . . . . . . . . . Hacking Detections 47 | . 2 . 8 . . . 4 2 . 10 . . . . 6 . . . . . . 3 . . . . 4 . 1 . . 2 1 2 . 2 . Full Trace Events 7 | . . . 2 . . . 1 . . 1 . . . . 1 . . . . . . 1 . . . . 1 . . . . . . . . . . Feedback Events . | . . . . . . . . . . . . . . . . . . . . . . . . . . . . . . . . . . . . . . Feedback Blocked . | . . . . . . . . . . . . . . . . . . . . . . . . . . . . . . . . . . . . . . Robot Schematics Acquired 9 | . . . . . . . . . . . . . . . . . . 4 . . . . . . . . . . . . 3 . . . . 2 . Robots Built . | . . . . . . . . . . . . . . . . . . . . . . . . . . . . . . . . . . . . . . Authchips . | . . . . . . . . . . . . . . . . . . . . . . . . . . . . . . . . . . . . . . Time . | . . . . . . . . . . . . . . . . . . . . . . . . . . . . . . . . . . . . . . Total Robot Build Rating . | . . . . . . . . . . . . . . . . . . . . . . . . . . . . . . . . . . . . . . Part Schematics Acquired 56 | . . . 1 . . . . . . . . . . . 16 . . 11 . . . . . . 4 . . . . . . . 16 . 3 5 . Parts Built 4 | . . . . . . . . . . . . . . . 3 . . . . . . . . . . . 1 . . . . . . . . . . Authchips 1 | . . . . . . . . . . . . . . . . . . . . . . . . . . . 1 . . . . . . . . . . Time 371 | . . . . . . . . . . . . . . . 269 . . . . . . . . . . . 102 . . . . . . . . . . Total Part Build Rating 27 | . . . . . . . . . . . . . . . 19 . . . . . . . . . . . 8 . . . . . . . . . . Part Studies Acquired 16 | . . . 5 . . . . . . . . . . . 2 . . . . . . . . . . . 2 . . . . . 1 4 2 . . Parts Repaired 5 | . . . 1 . . . . 1 . . . . . . . . . . . . . 2 . . . . . . . . . . 1 . . . . Time 353 | . . . 136 . . . . 13 . . . . . . . . . . . . . 142 . . . . . . . . . . 62 . . . . Parts Recycled . | . . . . . . . . . . . . . . . . . . . . . . . . . . . . . . . . . . . . . . Recycled Matter . | . . . . . . . . . . . . . . . . . . . . . . . . . . . . . . . . . . . . . . Retrieved Matter . | . . . . . . . . . . . . . . . . . . . . . . . . . . . . . . . . . . . . . . Retrieved Components 23 | . . . . . . . 3 . . 20 . . . . . . . . . . . . . . . . . . . . . . . . . . . Parts Scanalyzed 1 | . . . 1 . . . . . . . . . . . . . . . . . . . . . . . . . . . . . . . . . . Part Schematics Acquired 1 | . . . 1 . . . . . . . . . . . . . . . . . . . . . . . . . . . . . . . . . . Parts Damaged 1 | . . . 1 . . . . . . . . . . . . . . . . . . . . . . . . . . . . . . . . . . Bothacking | -11 -10 -10 -9 -9 -9 -8 -8 -7 -7 -7 -7 -7 -7 -6 -6 -6 -6 -6 -5 -5 -5 -5 -5 -5 -5 -4 -4 -4 -4 -4 -4 -3 -3 -2 -2 -2 -1 ------------ Run | Yrd Mat Min Mat Min Exi Min Mat Fac Was Fac Low Low Zio Pro Fac Low Low Dat Pro Fac Was Fac Upp Upp Zhi Pro Fac Ext Cet Arc Hub Res Qua Res Tes Frg Acc Used RIF Installer . | . . . . . . . . . . . . . . . . . . . . . . . . . . . . . . . . . . . . . . Robots Hacked . | . . . . . . . . . . . . . . . . . . . . . . . . . . . . . . . . . . . . . . Non-combat . | . . . . . . . . . . . . . . . . . . . . . . . . . . . . . . . . . . . . . . Combat . | . . . . . . . . . . . . . . . . . . . . . . . . . . . . . . . . . . . . . . Robot Hacks Applied . | . . . . . . . . . . . . . . . . . . . . . . . . . . . . . . . . . . . . . . Relay Couplers Released 9 | . . . . . . . . . . . . . . . 3 . . . . . . . . . . . . . . . . . . 3 2 1 . Machine Destruction 6 | . . . . . . . . . . . . . . . . . . . . . . . . . . . . . . . . . . 3 2 1 . Programmers 3 | . . . . . . . . . . . . . . . 3 . . . . . . . . . . . . . . . . . . . . . . Fabnet Peak Effective % . | . . . . . . . . . . . . . . . . . . . . . . . . . . . . . . . . . . . . . . Robots Rewired 11 | . . . . . . . . . . . . . . . . . . . . . . . . 3 . . . 7 . . . . . . 1 . . Allies Hacked . | . . . . . . . . . . . . . . . . . . . . . . . . . . . . . . . . . . . . . . Hacks Repelled . | . . . . . . . . . . . . . . . . . . . . . . . . . . . . . . . . . . . . . . Allies | -11 -10 -10 -9 -9 -9 -8 -8 -7 -7 -7 -7 -7 -7 -6 -6 -6 -6 -6 -5 -5 -5 -5 -5 -5 -5 -4 -4 -4 -4 -4 -4 -3 -3 -2 -2 -2 -1 -------- Run | Yrd Mat Min Mat Min Exi Min Mat Fac Was Fac Low Low Zio Pro Fac Low Low Dat Pro Fac Was Fac Upp Upp Zhi Pro Fac Ext Cet Arc Hub Res Qua Res Tes Frg Acc Total Allies 76 | . . 5 . . . . . . . . . . 16 . 4 . . . . . . . . 3 . . 2 21 5 . . 6 . 6 1 . 7 Largest Group 16 | . . 5 5 . . . . . . . . . 16 16 15 4 1 . . . . . . 3 . . 2 12 12 9 6 3 . 3 3 . 5 Highest-Rated Group 909 | . . 81 81 . . . . . . . . . 486 486 470 112 28 . . . . . . 90 . . 206 855 909 822 526 288 . 345 282 . 66 Highest-Rated Ally 159 | . . 31 31 . . . . . . . . . 40 40 40 28 28 . . . . . . 30 . . 103 159 159 159 96 103 . 115 120 . 15 Zionite Dispatches 12 | . . . . . . . . . . . . . . . 1 . . . . . . 1 . . . . 1 3 . . . 3 . 3 . . . Heavy 4 | . . . . . . . . . . . . . . . . . . . . . . . . . . . 1 2 . . . 1 . . . . . Light 3 | . . . . . . . . . . . . . . . . . . . . . . . . . . . . 1 . . . 1 . 1 . . . Recon 1 | . . . . . . . . . . . . . . . . . . . . . . 1 . . . . . . . . . . . . . . . Fire 1 | . . . . . . . . . . . . . . . 1 . . . . . . . . . . . . . . . . . . . . . . Hacker 1 | . . . . . . . . . . . . . . . . . . . . . . . . . . . . . . . . . . 1 . . . Defense Resupply 1 | . . . . . . . . . . . . . . . . . . . . . . . . . . . . . . . . . . 1 . . . Zionite Resupply 1 | . . . . . . . . . . . . . . . . . . . . . . . . . . . . . . . . 1 . . . . . Total Orders 18 | . . . . . . . . . . . . . . . . . . . . . . . . . . . . . 3 . 11 2 . 1 1 . . STAY 8 | . . . . . . . . . . . . . . . . . . . . . . . . . . . . . 3 . 4 1 . . . . . ROAM 5 | . . . . . . . . . . . . . . . . . . . . . . . . . . . . . . . 4 . . . 1 . . FOLLOW 3 | . . . . . . . . . . . . . . . . . . . . . . . . . . . . . . . 3 . . . . . . DROP 2 | . . . . . . . . . . . . . . . . . . . . . . . . . . . . . . . . 1 . 1 . . . Ally Attacks 526 | . . 6 38 . . . . . . . . . . 21 105 10 7 . . . . . . 9 . . . 85 50 33 40 40 . 30 36 . 16 Total Damage 20737 | . . 41 477 . . . . . . . . . . 226 1606 144 107 . . . . . . 330 . . . 4710 2673 1113 1507 1839 . 1386 4275 . 303 Kills 129 | . . 1 9 . . . . . . . . . . 6 19 3 2 . . . . . . 1 . . . 29 8 2 10 8 . 7 23 . 1 Allies Corrupted 7 | . . . . . . . . . . . . . . . 1 1 . . . . . . . . . . . . . . 3 2 . . . . . Allies Melted 2 | . . . . . . . . . . . . . . . . . . . . . . . . 1 . . . . . . . 1 . . . . . Intel | -11 -10 -10 -9 -9 -9 -8 -8 -7 -7 -7 -7 -7 -7 -6 -6 -6 -6 -6 -5 -5 -5 -5 -5 -5 -5 -4 -4 -4 -4 -4 -4 -3 -3 -2 -2 -2 -1 ------- Run | Yrd Mat Min Mat Min Exi Min Mat Fac Was Fac Low Low Zio Pro Fac Low Low Dat Pro Fac Was Fac Upp Upp Zhi Pro Fac Ext Cet Arc Hub Res Qua Res Tes Frg Acc Active Infowar (turns) 28069 | . . . 2008 488 385 471 370 292 84 2291 380 516 1382 401 1399 . . . . . . 527 601 1150 378 284 1075 2091 39 171 732 2212 877 1189 1163 3878 1235 Optics 4407 | . . . 1883 488 385 471 227 . . . . . . . . . . . . . . . . . . . . . . . . . . . . 953 . Sensors 23325 | . . . . . . . 143 292 84 2291 380 516 1382 401 1398 . . . . . . 527 601 1150 378 284 1075 2091 39 171 732 1992 668 1083 1058 3525 1064 Terrain 4211 | . . . 125 . . . . . . . . . . . . . . . . . . . . . . . . . . . . 1245 679 1121 1041 . . Cloaking 2912 | . . . . . . . . . . . . . . . . . . . . . . . . . . . . . . . . . . . 2 1769 1141 Jamming 7687 | . . . . . . . . . . . . . . . 1 . . . . . . . . . . . 238 . . . . 2211 874 840 1161 2362 . Robot Analysis Total 4 | . . . . . . . . . . . . . . . . . . . . . . . . . 4 . . . . . . . . . . . . Derelict Logs Recovered 12 | . . 1 . . . . . . . . 2 1 2 . . 1 2 . 1 . . . 1 1 . . . . . . . . . . . . . Drone Launches . | . . . . . . . . . . . . . . . . . . . . . . . . . . . . . . . . . . . . . . Drone Recoveries . | . . . . . . . . . . . . . . . . . . . . . . . . . . . . . . . . . . . . . . Zionite Intel Received 21 | . . . . . . . . . . . . . . . 5 . . . . . . 2 . . . . . 1 . . 3 . 3 1 5 1 . Main Access 1 | . . . . . . . . . . . . . . . . . . . . . . . . . . . . . . . . . 1 . . . . Emergency Access 2 | . . . . . . . . . . . . . . . 1 . . . . . . . . . . . . . . . . . . . 1 . . Guard Positions 2 | . . . . . . . . . . . . . . . . . . . . . . . . . . . . . . . . . 1 . . 1 . Component Stockpiles 2 | . . . . . . . . . . . . . . . 1 . . . . . . . . . . . . . . . . . . . 1 . . Prototype Stockpiles 1 | . . . . . . . . . . . . . . . . . . . . . . . . . . . . . . . . . . . 1 . . Component Schematics 1 | . . . . . . . . . . . . . . . . . . . . . . . . . . . . . . . . . 1 . . . . Prototype Schematics 2 | . . . . . . . . . . . . . . . 2 . . . . . . . . . . . . . . . . . . . . . . Unaware Schematics 1 | . . . . . . . . . . . . . . . . . . . . . . . . . . . . . . . 1 . . . . . . Unaware Analyses 1 | . . . . . . . . . . . . . . . . . . . . . . 1 . . . . . . . . . . . . . . . Trap Installations 2 | . . . . . . . . . . . . . . . . . . . . . . . . . . . . . . . 1 . . . 1 . . Active Terminals 2 | . . . . . . . . . . . . . . . . . . . . . . . . . . . . . . . . . . 1 1 . . Active Garrisons 2 | . . . . . . . . . . . . . . . . . . . . . . 1 . . . . . . . . 1 . . . . . . Depthwide Sectors/-1 2 | . . . . . . . . . . . . . . . 1 . . . . . . . . . . . . 1 . . . . . . . . . Exploration | -11 -10 -10 -9 -9 -9 -8 -8 -7 -7 -7 -7 -7 -7 -6 -6 -6 -6 -6 -5 -5 -5 -5 -5 -5 -5 -4 -4 -4 -4 -4 -4 -3 -3 -2 -2 -2 -1 ------------- Run | Yrd Mat Min Mat Min Exi Min Mat Fac Was Fac Low Low Zio Pro Fac Low Low Dat Pro Fac Was Fac Upp Upp Zhi Pro Fac Ext Cet Arc Hub Res Qua Res Tes Frg Acc Turns Passed 34580 | 2 497 701 2174 488 385 471 844 371 108 2292 380 516 1382 401 1475 590 607 101 395 187 568 1095 625 1200 384 368 1082 2208 644 314 732 2212 877 1189 1267 4155 1293 Spaces Moved 19601 | 2 194 411 1077 269 249 243 355 209 141 1219 297 415 997 260 871 428 450 83 274 134 367 571 445 806 262 241 734 1029 334 100 313 971 474 724 877 2031 744 Core 141 | . . . . . . . . . 119 . . . . . . . . . . . . . . . . . . . . . . . . . . . 22 Treads 3107 | . 157 411 1022 269 249 243 355 209 22 170 . . . . . . . . . . . . . . . . . . . . . . . . . . . Legs 16153 | 2 37 . 55 . . . . . . 1049 297 415 997 260 871 428 450 83 274 134 367 571 445 806 262 241 734 1029 334 100 313 792 474 724 877 2031 701 Wheels 200 | . . . . . . . . . . . . . . . . . . . . . . . . . . . . . . . . 179 . . . . 21 Hover . | . . . . . . . . . . . . . . . . . . . . . . . . . . . . . . . . . . . . . . Flight . | . . . . . . . . . . . . . . . . . . . . . . . . . . . . . . . . . . . . . . Fastest Speed 50 | 120 120 160 120 155 155 155 160 160 50 122 122 122 122 132 118 121 121 123 123 123 123 135 135 135 130 130 122 122 117 122 122 120 109 106 108 110 50 Average Speed 131 | 120 158 160 152 155 155 157 160 160 68 156 122 122 128 132 129 121 122 123 123 126 131 136 135 135 132 130 122 122 121 122 122 146 117 115 109 125 108 Slowest Speed 750 | 120 190 160 225 155 155 160 160 160 160 270 122 122 132 132 190 123 123 123 123 128 135 410 135 135 410 130 235 122 122 122 122 320 120 118 178 260 750 Overloaded Moves . | . . . . . . . . . . . . . . . . . . . . . . . . . . . . . . . . . . . . . . Propulsion Burnouts . | . . . . . . . . . . . . . . . . . . . . . . . . . . . . . . . . . . . . . . Robots Hopped 1 | . . . . . . . . . . . . . . . . . . . . . . . . . . . . . . . . . . . . . 1 Potential Cave-ins 23 | . . . . . . . . . . . . . . . . 2 . . . . . . . . . . . . . . . 9 . . . . 12 Cave-ins Triggered . | . . . . . . . . . . . . . . . . . . . . . . . . . . . . . . . . . . . . . . Teleports 4 | . . . . . . . . . . . . . . . . . . . . . . . . . . . . . . . . . . 1 . 1 2 Exploration Rate (%) 50 | 2 42 84 81 58 61 56 33 6 93 36 51 61 89 44 27 50 61 69 47 4 95 19 63 76 60 43 16 84 65 70 24 34 61 18 81 40 20 Regions Visited 37 Branch Regions 23 Pre-discovered Areas 14 | . 2 . . . 1 . . . . . . . . . 4 . . 1 . . . . . . 3 . . 3 . . . . . . . . . Known Exits Taken 28 | . 1 . . . . 1 1 . . 1 1 1 1 1 1 1 1 1 1 . . 1 1 1 1 1 1 1 1 1 1 1 1 1 1 1 . Unknown Exits Taken 5 | 1 . 1 1 1 1 . . . . . . . . . . . . . . . . . . . . . . . . . . . . . . . . Scrap Searched 28 | . . 2 . 1 . . . . . . 1 3 3 3 . 1 2 . 3 . . . 2 5 . 2 . . . . . . . . . . . Spaces Dug 291 | . 5 . . . . . . . . 15 . . . . 19 3 7 . . . . 20 . . . . 5 2 . . 8 63 10 25 24 37 48 Terrain Destroyed 1085 | . 50 16 49 3 . . 62 . . 19 . . . . 37 6 12 . . . . 32 . 14 . . 5 4 5 12 10 115 28 30 36 257 283 Melee 26 | . . . . . . . . . . 15 . . . . . . . . . . . . . . . . . . . . . . . 11 . . . Projectile 681 | . . . . . . . 1 . . . . . . . 37 6 1 . . . . 32 . . . . 5 4 5 12 10 115 28 19 36 212 158 AOE 363 | . 50 16 49 3 . . 61 . . 4 . . . . . . 11 . . . . . . 14 . . . . . . . . . . . 36 119 Terrain Rammed . | . . . . . . . . . . . . . . . . . . . . . . . . . . . . . . . . . . . . . . Walls Destroyed . | . . . . . . . . . . . . . . . . . . . . . . . . . . . . . . . . . . . . . . Machines Disabled . | . . . . . . . . . . . . . . . . . . . . . . . . . . . . . . . . . . . . . . Actions | -11 -10 -10 -9 -9 -9 -8 -8 -7 -7 -7 -7 -7 -7 -6 -6 -6 -6 -6 -5 -5 -5 -5 -5 -5 -5 -4 -4 -4 -4 -4 -4 -3 -3 -2 -2 -2 -1 --------- Run | Yrd Mat Min Mat Min Exi Min Mat Fac Was Fac Low Low Zio Pro Fac Low Low Dat Pro Fac Was Fac Upp Upp Zhi Pro Fac Ext Cet Arc Hub Res Qua Res Tes Frg Acc Total 26190 | 1 286 437 1439 303 248 278 518 239 155 1444 305 419 1099 319 1121 479 492 82 296 154 428 816 460 903 300 272 868 1946 549 258 653 1581 713 996 1118 3119 1096 Wait 3530 | . 15 1 176 . . 4 33 13 1 48 . . 89 51 149 28 . . 5 2 15 146 5 40 . 7 54 755 166 128 325 413 122 114 143 406 76 Move 19564 | 1 193 410 1076 268 248 242 354 209 140 1218 296 414 996 259 870 427 449 82 273 134 366 570 444 805 261 240 733 1028 333 99 312 970 473 723 876 2030 742 Hop 1 | . . . . . . . . . . . . . . . . . . . . . . . . . . . . . . . . . . . . . 1 Pick Up 293 | . 12 6 21 3 . . 20 3 3 29 2 . . 2 11 3 7 . 1 3 3 12 . 3 6 . 6 6 7 3 3 13 14 11 4 62 14 Fast Attach 238 | . 1 . 12 . . 1 6 3 . 15 . 1 6 2 6 . 6 . . 5 6 3 1 4 11 1 9 9 6 3 . 10 9 34 7 35 26 Attach 116 | . 2 2 6 1 . 3 6 2 1 7 . . . . 5 . 1 . . 2 . 1 1 . 2 2 5 2 . 1 . 5 2 7 2 28 20 Detach 56 | . 1 . 4 . . . 1 . . 2 . . 1 1 1 . 1 . . 1 1 3 1 . 1 1 1 . 1 2 . 2 1 6 . 17 6 Swap 451 | . 7 3 18 8 . 1 21 3 2 18 1 . 1 . 8 5 4 . . 2 6 15 2 9 3 7 13 20 8 1 . 45 25 15 25 120 35 Drop 422 | . 3 3 26 3 . . 22 3 8 23 2 1 6 4 10 5 15 . 1 5 17 13 . 8 16 1 11 17 12 5 3 21 22 39 13 70 14 Fire 1292 | . 50 9 94 18 . 26 51 3 . 59 4 3 . . 58 11 9 . 16 . 14 53 6 13 . 11 36 16 8 14 10 101 45 28 46 331 149 Melee 36 | . . . . . . . . . . 20 . . . . . . . . . . . . . . . . . . . . . . . 16 . . . Ram 5 | . . . . . . . . . . 1 . . . . . . . . . . . . . . . . . . . . . . . . . . 4 Kick 11 | . . . . . . . . . . 3 . . . . 1 . . . . . . . . . . . . 2 . 2 . 1 . . . 2 . Crush 19 | . 2 3 6 2 . 1 4 . . 1 . . . . . . . . . . . . . . . . . . . . . . . . . . . Escape Stasis 30 | . . . . . . . . . . . . . . . 2 . . . . . . . . . . . . 6 . . . . . 3 . 10 9 Rewire 108 | . . . . . . . . . . . . . . . . . . . . . . . . 21 . . . 77 . . . . . . 2 8 . Trap 2 | . . . . . . . . . . . . . . . . . . . . . . . . . . 2 . . . . . . . . . . . Miscellaneous 16 | . . . . . . . . . . . . . . . . . . . . . . . . . . . . 8 8 . . . . . . . . Route ------- -11/Scrapyard -10/Materials (discovered 2 exits: Mat / *Min) -10/Mines -9/Materials (discovered 4 exits: *Mat x3 / [*Min]) -9/Mines (discovered 2 exits: *Mat / *Exi) -9/Exiles (discovered 2 exits: [*Min x2]) -8/Mines -8/Materials -7/Factory -7/Waste -7/Factory (discovered 4 exits: *Sto x2 / *Low x2) -7/Lower Caves -7/Lower Caves (discovered 2 exits: *Fac / *Zio) -7/Zion (discovered 2 exits: Dee / *Pro) -6/Proximity Caves -6/Factory (discovered 5 exits: *Fac x3 / *Low / Gar) -6/Lower Caves -6/Lower Caves (discovered 2 exits: *Fac / *Dat) -6/Data Miner -5/Proximity Caves -5/Factory (discovered 4 exits: Fac x3 / Upp) -5/Waste -5/Factory (discovered 2 exits: *Fac / *Upp) -5/Upper Caves -5/Upper Caves -5/Zhirov -4/Proximity Caves -4/Factory -4/Extension (discovered 2 exits: *Res / *Cet) -4/Cetus (discovered 2 exits: *Res / *Arc) -4/Archives (discovered 2 exits: *Hub x2) -4/Hub_04(d) (discovered 2 exits: *Res x2) -3/Research (discovered 2 exits: *Res / *Qua) -3/Quarantine -2/Research -2/Testing (discovered 3 exits: Acc / *Sec / *Frg) -2/Protoforge -1/Access History --------- Turn | Location | Event 1 | -11/Scrapyard | Discovered new exit (range 1) 3 | -11/Scrapyard | Entered Materials 300 | -10/Materials | Build established: Mutant 484 | -10/Materials | Discovered new exit (range 7) 484 | -10/Materials | Discovered new exit (range 12) 484 | -10/Materials | Identified exit to Mines 500 | -10/Materials | Entered Mines 548 | -10/Mines | Learned 4 Materials zone layouts 662 | -10/Mines | Assisted by bots powering up and referring to "LRC-V3" 784 | -10/Mines | A weapon hastily lodged in a ceiling crevice suddenly fell to the ground 814 | -10/Mines | Found a damaged Exp. Sensor Array with a note attached 818 | -10/Mines | Found Prototype Device 1171 | -10/Mines | Discovered new exit (range 14) 1201 | -10/Mines | Entered Materials 1201 | -9/Materials | Accompanied by 5 allies 1201 | -9/Materials | Evolved 2 slots: Propulsion x1, Utility x1 1202 | -9/Materials | Identified exit to Materials 1210 | -9/Materials | Led the pair of lost Derelicts to an unsafe place 1577 | -9/Materials | Discovered exit to Materials (range 10) 1724 | -9/Materials | Discovered new exit (range 14) 2381 | -9/Materials | Identified Exp. Sensor Array 2801 | -9/Materials | First assault squad dispatched 3196 | -9/Materials | Repaired Broken Exp. Sensor Array 3375 | -9/Materials | Entered Mines 3414 | -9/Mines | Discovered exit to Materials (range 8) 3561 | -9/Mines | YI-UF0 nonchalantly dropped a Grenade Launcher on the ground 3615 | -9/Mines | Core integrity fell below 50% 3620 | -9/Mines | Destroyed YI-UF0 3640 | -9/Mines | Found Prototype Storage 3652 | -9/Mines | Identified YI-UF0's Bottomless Matter Pit 3857 | -9/Mines | Deemed a non-threat by the Exiles lab entrance 3857 | -9/Mines | Discovered new exit (range 5) 3863 | -9/Mines | Entered Exiles 3884 | -9/Exiles | Discovered new exit (range 19) 3901 | -9/Exiles | Met 8R-AWN 3927 | -9/Exiles | Met EX-HEX 3983 | -9/Exiles | Met EX-DEC 3997 | -9/Exiles | Learned location of Zion (-7) 4037 | -9/Exiles | Discovered new exit (range 17) 4248 | -9/Exiles | Entered Mines 4364 | -8/Mines | Found a Scrap Suit stashed away for nefarious purposes 4712 | -8/Mines | Discovered exit to Materials (range 4) 4719 | -8/Mines | Entered Materials 4719 | -8/Materials | Evolved 2 slots: Utility x1, Weapon x1 5247 | -8/Materials | Garrison activated, responded to threat 5318 | -8/Materials | Build established: Tank 5496 | -8/Materials | Discovered new exit (range 5) 5561 | -8/Materials | Identified exit to Factory 5563 | -8/Materials | Entered Factory 5563 | -7/Factory | Evolved 2 slots: Propulsion x1, Utility x1 5631 | -7/Factory | Repaired Lgt. Treads+ 5854 | -7/Factory | Discovered new exit (range 14) 5906 | -7/Factory | Identified exit to Factory 5934 | -7/Factory | Sucked down chute 5934 | -7/Factory | Entered Waste 5949 | -7/Waste | EMP discharged 5966 | -7/Waste | Spotted C-40 Crusher 5981 | -7/Waste | Spotted C-40 Crusher 5993 | -7/Waste | Spotted C-40 Crusher 5999 | -7/Waste | Crushed by Compactor (1 part destroyed, 1 dropped) 6008 | -7/Waste | Spotted C-40 Crusher 6017 | -7/Waste | Spotted C-40 Crusher 6030 | -7/Waste | Discovered new exit (range 11) 6041 | -7/Waste | Identified exit to Factory 6042 | -7/Waste | Entered Factory 6269 | -7/Factory | Build established: Mutant 6706 | -7/Factory | System corruption reached 10% 6758 | -7/Factory | Cargo convoy interrupted 7003 | -7/Factory | Discovered new exit (range 6) 7375 | -7/Factory | Allied Derelicts emerged from ambush trap array 7376 | -7/Factory | Identified exit to Storage 7376 | -7/Factory | Identified exit to Lower Caves 7637 | -7/Factory | Build established: Skirmisher 8210 | -7/Factory | Lost 4 parts (2n2w) 8334 | -7/Factory | Entered Lower Caves 8374 | -7/Lower Caves | Identified exit to Lower Caves 8659 | -7/Lower Caves | Learned location of 1 exit from Factory 8714 | -7/Lower Caves | Entered another Lower Caves area 8747 | -7/Lower Caves | Learned Factory terminal intel 8893 | -7/Lower Caves | Discovered exit to Factory (range 9) 9223 | -7/Lower Caves | Discovered new exit (range 6) 9229 | -7/Lower Caves | Identified exit to Zion 9230 | -7/Lower Caves | Entered Zion 9247 | -7/Zion | Given A8's code to call for help 9294 | -7/Zion | System corruption cleaned by Quarantine Array 9406 | -7/Zion | Discovered new exit (range 15) 9471 | -7/Zion | Gained Derelict followers 9624 | -7/Zion | Gained Derelict followers 9629 | -7/Zion | Learned Factory scanalyzer intel 9728 | -7/Zion | Identified exit to Deep Caves 9818 | -7/Zion | Gained Derelict followers 9888 | -7/Zion | Learned location of 2 exits from Factory 10178 | -7/Zion | Met Imprinter 10206 | -7/Zion | Imprinted 10208 | -7/Zion | Declared Zion's savior 10566 | -7/Zion | Identified exit to Proximity Caves 10612 | -7/Zion | Entered Proximity Caves 10612 | -6/Proximity Caves | Accompanied by 16 allies 10615 | -6/Proximity Caves | Spotter reported a threat 10943 | -6/Proximity Caves | Discovered exit to Factory (range 11) 11013 | -6/Proximity Caves | Entered Factory 11013 | -6/Factory | Accompanied by 15 allies 11013 | -6/Factory | Evolved 2 slots: Propulsion x1, Utility x1 11014 | -6/Factory | Identified exit to Factory 11014 | -6/Factory | Identified exit to Lower Caves 11015 | -6/Factory | Loaded intel: 26 terminal locations 11016 | -6/Factory | Loaded intel: 4 scanalyzer locations 11132 | -6/Factory | Retrieved Zion intel report: Component Stockpiles 11354 | -6/Factory | Fabricated HERF Cannon (x2) 11418 | -6/Factory | Identified exit to Garrison 11484 | -6/Factory | Spotted B-75 Beast 11506 | -6/Factory | Destroyed B-75 Beast 11528 | -6/Factory | Build established: Tank 11530 | -6/Factory | Lost 3 allies 11531 | -6/Factory | Retrieved Zion intel report: Emergency Access 11661 | -6/Factory | Retrieved Zion intel report: Prototype Schematics 11683 | -6/Factory | Discovered exit to Factory (range 10) 11703 | -6/Factory | Retrieved Zion intel report: Prototype Schematics 12192 | -6/Factory | Retrieved Zion intel report: Depthwide Sectors/-5 12193 | -6/Factory | Zion Fire squad teleported in 12272 | -6/Factory | Fabricated Exp. Targeting Computer? 12334 | -6/Factory | Terminal network hard line cut 12488 | -6/Factory | Entered Lower Caves 12488 | -6/Lower Caves | Accompanied by 4 allies 13015 | -6/Lower Caves | Discovered new exit (range 4) 13064 | -6/Lower Caves | Identified exit to Lower Caves 13078 | -6/Lower Caves | Entered another Lower Caves area 13078 | -6/Lower Caves | Accompanied by 1 ally 13110 | -6/Lower Caves | Discovered exit to Factory (range 9) 13486 | -6/Lower Caves | Learned location of 1 exit from Factory 13539 | -6/Lower Caves | Learned location of 2 exits from Factory 13601 | -6/Lower Caves | Build established: Gunner 13638 | -6/Lower Caves | Discovered new exit (range 9) 13648 | -6/Lower Caves | Identified exit to Data Miner 13685 | -6/Lower Caves | Entered Data Miner 13685 | -6/Data Miner | Discovered new exit (range 6) 13709 | -6/Data Miner | Met Data Miner 13742 | -6/Data Miner | Learned location of Section 7 (-2) 13742 | -6/Data Miner | Acquired the access code to Warlord's prototype stash 13757 | -6/Data Miner | Received God Mode back door access code from Data Miner 13784 | -6/Data Miner | Identified exit to Proximity Caves 13786 | -6/Data Miner | Entered Proximity Caves 13789 | -5/Proximity Caves | Spotter reported a threat 13838 | -5/Proximity Caves | Learned Factory emergency access door positions 13926 | -5/Proximity Caves | Spotter reported a threat 14154 | -5/Proximity Caves | Discovered exit to Factory (range 11) 14181 | -5/Proximity Caves | Entered Factory 14181 | -5/Factory | Evolved 2 slots: Power x1, Utility x1 14182 | -5/Factory | Identified exit to Upper Caves 14183 | -5/Factory | Identified exit to Factory 14368 | -5/Factory | Sucked down chute 14368 | -5/Factory | Entered Waste 14368 | -5/Waste | The area was eerily silent 14498 | -5/Waste | Build established: Derelict-Tank 14523 | -5/Waste | Discovered new exit (range 15) 14845 | -5/Waste | Build established: Tank 14935 | -5/Waste | Identified exit to Factory 14936 | -5/Waste | Entered Factory 15001 | -5/Factory | Retrieved Zion intel report: Unaware Analyses 15118 | -5/Factory | Repaired Hvy. Armored Exoskeleton 15193 | -5/Factory | Repaired Adv. Cloaking Device 15621 | -5/Factory | Retrieved Zion intel report: Active Garrisons 15622 | -5/Factory | Zion Recon squad teleported in 15670 | -5/Factory | Discovered exit to Factory (range 11) 15808 | -5/Factory | Assembled infested ambush trap array 15863 | -5/Factory | Destroyed 9 combat bots 16020 | -5/Factory | Discovered exit to Upper Caves (range 8) 16031 | -5/Factory | Entered Upper Caves 16511 | -5/Upper Caves | Learned location of 1 exit from Proximity Caves 16646 | -5/Upper Caves | Discovered new exit (range 8) 16654 | -5/Upper Caves | Identified exit to Upper Caves 16656 | -5/Upper Caves | Entered another Upper Caves area 16704 | -5/Upper Caves | Build established: Derelict-Tank 16715 | -5/Upper Caves | Attacked by a delusional Derelict stockpiling Unaware 16979 | -5/Upper Caves | Learned Factory emergency access door positions 17207 | -5/Upper Caves | Spotted B-75 Beast 17837 | -5/Upper Caves | Discovered new exit (range 9) 17855 | -5/Upper Caves | Identified exit to Zhirov 17856 | -5/Upper Caves | Entered Zhirov 17856 | -5/Zhirov | Discovered new exit (range 5) 17885 | -5/Zhirov | Met Zhirov 17918 | -5/Zhirov | Found Alien Artifact 17918 | -5/Zhirov | Identified Integrated Reactor 17918 | -5/Zhirov | Installed Integrated Reactor, increased core energy generation (+10) 17948 | -5/Zhirov | Found Alien Artifact 18051 | -5/Zhirov | Identified exit to Proximity Caves 18180 | -5/Zhirov | Learned location of Quarantine (-3) 18180 | -5/Zhirov | Learned location of Testing (-2) 18180 | -5/Zhirov | Learned location of Command (-1) 18192 | -5/Zhirov | Zhirov requested help retrieving the SGEMP Prototype 18220 | -5/Zhirov | Build established: Mutant 18240 | -5/Zhirov | Entered Proximity Caves 18328 | -4/Proximity Caves | Spotted B-86 Titan 18350 | -4/Proximity Caves | Destroyed B-86 Titan 18608 | -4/Proximity Caves | Entered Factory 18608 | -4/Factory | Evolved 2 slots: Utility x1, Weapon x1 18651 | -4/Factory | Zion Heavy squad teleported in 18668 | -4/Factory | Build established: Derelict-Skirmisher 18846 | -4/Factory | Found Prototype Protection 18846 | -4/Factory | Identified Zio. Weapon Casing 18851 | -4/Factory | Found Prototype Protection 18851 | -4/Factory | Identified Zio. Heavy Carapace 18913 | -4/Factory | Discovered new exit (range 16) 19440 | -4/Factory | Fabricated Exp. Sensor Array (x1) 19689 | -4/Factory | Identified exit to Extension 19690 | -4/Factory | Entered Extension 19711 | -4/Extension | Build established: Tank 19733 | -4/Extension | Zion Heavy squad teleported in 19856 | -4/Extension | Zion Heavy squad teleported in 19890 | -4/Extension | Rescued a captive Derelict 19891 | -4/Extension | Rescued a captive Derelict 20593 | -4/Extension | Rescued a captive Derelict 20595 | -4/Extension | Rescued a captive Derelict 20635 | -4/Extension | Retrieved Zion intel report: Depthwide Sectors/-3 20636 | -4/Extension | Zion Light squad teleported in 21073 | -4/Extension | Terminal network hard line cut 21177 | -4/Extension | Spotted B-86 Titan 21192 | -4/Extension | Allies destroyed B-86 Titan 21194 | -4/Extension | Found Zio. Weapon Casing 21208 | -4/Extension | Spotted B-86 Titan 21213 | -4/Extension | Allies destroyed B-86 Titan 21244 | -4/Extension | Lost 4 allies 21317 | -4/Extension | Rescued a captive Derelict 21318 | -4/Extension | Rescued a captive Derelict 21745 | -4/Extension | Build established: Messiah-Skirmisher 21765 | -4/Extension | Rescued A7 21855 | -4/Extension | Discovered new exit (range 10) 21858 | -4/Extension | Discovered new exit (range 6) 21871 | -4/Extension | Identified exit to Cetus 21898 | -4/Extension | Entered Cetus 21898 | -4/Cetus | Accompanied by 11 allies (A7) 21903 | -4/Cetus | Acquired a Cetus Manufacturing Module code from A7 21945 | -4/Cetus | Spotted Cetus Guard 21948 | -4/Cetus | Spotted Cetus Guard 21948 | -4/Cetus | Allies destroyed Cetus Guard 21952 | -4/Cetus | Spotted Cetus Guard 21953 | -4/Cetus | Spotted Cetus Guard 21955 | -4/Cetus | Allies destroyed Cetus Guard 21955 | -4/Cetus | Allies destroyed Cetus Guard 21961 | -4/Cetus | Allies destroyed Cetus Guard 22122 | -4/Cetus | Escorted A7 to Cetus Mainframe 22143 | -4/Cetus | Discovered new exit (range 16) 22170 | -4/Cetus | Started Cetus Manufacturing Module 22195 | -4/Cetus | Manufactured an Enhanced Grunt 22219 | -4/Cetus | Spotted Cetus Guard 22220 | -4/Cetus | Manufactured an Enhanced Grunt 22227 | -4/Cetus | Spotted Cetus Guard 22233 | -4/Cetus | Allies destroyed Cetus Guard 22238 | -4/Cetus | Allies destroyed Cetus Guard 22245 | -4/Cetus | Manufactured an Enhanced Grunt 22265 | -4/Cetus | Found Zio. Weapon Casing 22266 | -4/Cetus | Discovered new exit (range 16) 22270 | -4/Cetus | Manufactured an Enhanced Grunt 22277 | -4/Cetus | Scared off Revision 17 22295 | -4/Cetus | Manufactured an Enhanced Grunt 22424 | -4/Cetus | Identified exit to Archives 22525 | -4/Cetus | Build established: Commander-Tank 22542 | -4/Cetus | Entered Archives 22542 | -4/Archives | Accompanied by 9 allies (A7) 22547 | -4/Archives | Received a hacking code to weaken MAIN.C 22736 | -4/Archives | Discovered new exit (range 16) 22793 | -4/Archives | Discovered new exit (range 13) 22806 | -4/Archives | Identified exit to Hub_04(d) 22856 | -4/Archives | Entered Hub_04(d) 22856 | -4/Hub_04(d) | Accompanied by 6 allies 22942 | -4/Hub_04(d) | Retrieved Zion intel report: Trap Installations 22971 | -4/Hub_04(d) | Retrieved Zion intel report: Active Garrisons 22991 | -4/Hub_04(d) | Build established: Messiah-Skirmisher 23016 | -4/Hub_04(d) | Retrieved Zion intel report: Unaware Schematics 23035 | -4/Hub_04(d) | Discovered new exit (range 9) 23215 | -4/Hub_04(d) | Discovered new exit (range 11) 23353 | -4/Hub_04(d) | Network Hub disabled 23353 | -4/Hub_04(d) | Network Hub disabled 23488 | -4/Hub_04(d) | Lost 3 allies 23509 | -4/Hub_04(d) | Identified exit to Research 23588 | -4/Hub_04(d) | Entered Research 23588 | -3/Research | Accompanied by 1 ally 23588 | -3/Research | Evolved 2 slots: Utility x2 23900 | -3/Research | Zion Zionite Resupply teleported in 23910 | -3/Research | Found Prototype Protection 23910 | -3/Research | Identified Zio. Shade Carapace 23913 | -3/Research | Found Prototype Protection 23913 | -3/Research | Identified Zio. Heavy Carapace 24146 | -3/Research | Zion Light squad teleported in 24387 | -3/Research | Lost 3 allies 24407 | -3/Research | Zion Heavy squad teleported in 24814 | -3/Research | Discovered new exit (range 11) 24847 | -3/Research | Identified exit to Research 24888 | -3/Research | Terminal network hard line cut 25063 | -3/Research | Found Zio. Weapon Casing 25068 | -3/Research | Found Zio. Weapon Casing 25737 | -3/Research | Discovered new exit (range 15) 25797 | -3/Research | Identified exit to Quarantine 25800 | -3/Research | Entered Quarantine 25841 | -3/Quarantine | Retrieved Zion intel report: Main Access 25908 | -3/Quarantine | Found Alien Artifact 25908 | -3/Quarantine | Identified Core Reset Matrix 25908 | -3/Quarantine | Identified Transdimensional Reconstructor 25908 | -3/Quarantine | Used Core Reset Matrix 25912 | -3/Quarantine | Detected hypermatrix surge 25912 | -3/Quarantine | Sensed 16 artifacts in vicinity 25971 | -3/Quarantine | Cryocooling Duct disabled 25986 | -3/Quarantine | Ambient heat levels rising (+20) 25986 | -3/Quarantine | Non-combat units ordered to evacuate 26037 | -3/Quarantine | Repaired Adv. Cryofiber Web 26073 | -3/Quarantine | Found Hpw. Transdimensional Reconstructor 26078 | -3/Quarantine | Found Hpw. Transdimensional Reconstructor 26080 | -3/Quarantine | Found Hpw. Transdimensional Reconstructor 26092 | -3/Quarantine | Found Dimensional Node Initializer 26261 | -3/Quarantine | Found Subatomic Replicator 26320 | -3/Quarantine | Retrieved Zion intel report: Guard Positions 26329 | -3/Quarantine | Retrieved Zion intel report: Component Schematics 26551 | -3/Quarantine | Discovered exit to Research (range 15) 26580 | -3/Quarantine | Found Terrabomb 26656 | -3/Quarantine | Found Sigix Broadsword 26677 | -3/Quarantine | Entered Research 26677 | -2/Research | Evolved 2 slots: Weapon x2 26925 | -2/Research | Found Unknown Device 26925 | -2/Research | Identified Quantum Capacitor 27000 | -2/Research | Build established: Messiah-Assassin 27065 | -2/Research | Spotted B-90 Cyclops 27082 | -2/Research | Spotted B-90 Cyclops 27084 | -2/Research | Warped through subspace 27125 | -2/Research | Retrieved Zion intel report: Active Terminals 27126 | -2/Research | Zion Defense Resupply teleported in 27217 | -2/Research | Zion Light squad teleported in 27404 | -2/Research | Discovered new exit (range 14) 27437 | -2/Research | Identified exit to Testing 27595 | -2/Research | Found Zio. Weapon Casing 27668 | -2/Research | Build established: Messiah-Executioner 27726 | -2/Research | Zion Hacker squad teleported in 27866 | -2/Research | Entered Testing 27866 | -2/Testing | Accompanied by 2 allies 27940 | -2/Testing | Rewired PD-LJEKIVHP3S 27982 | -2/Testing | Central database locked down 28029 | -2/Testing | Retrieved Zion intel report: Active Terminals 28460 | -2/Testing | Found Prototype Ballistic Cannon 28460 | -2/Testing | Identified Perforator 28526 | -2/Testing | Retrieved Zion intel report: Emergency Access 28636 | -2/Testing | Retrieved Zion intel report: Prototype Stockpiles 28661 | -2/Testing | Retrieved Zion intel report: Component Stockpiles 28724 | -2/Testing | Retrieved Zion intel report: Trap Installations 28754 | -2/Testing | Discovered new exit (range 17) 29040 | -2/Testing | Spotted Fortress 29116 | -2/Testing | First assault squad dispatched 29117 | -2/Testing | Discovered new exit (range 5) 29117 | -2/Testing | Discovered new exit (range 6) 29121 | -2/Testing | Identified exit to Section 7 29124 | -2/Testing | Identified exit to Protoforge 29133 | -2/Testing | Entered Protoforge 29134 | -2/Protoforge | Sensed 2 artifacts in vicinity 29244 | -2/Protoforge | Spotted Hotshot 29590 | -2/Protoforge | System corruption reached 10% 29678 | -2/Protoforge | Discovered new exit (range 11) 29693 | -2/Protoforge | Retrieved Zion intel report: Guard Positions 29804 | -2/Protoforge | Lost 3 parts (1u2w) 29886 | -2/Protoforge | Initialized slip node 30019 | -2/Protoforge | Superfortress began startup sequence 30023 | -2/Protoforge | Garrison activated, responded to threat 30097 | -2/Protoforge | Found Prototype Device 30098 | -2/Protoforge | Identified Crosscalibrator 30109 | -2/Protoforge | Found Prototype Device 30109 | -2/Protoforge | Identified Exp. Trap Extractor 30137 | -2/Protoforge | Spotted Immortal 30305 | -2/Protoforge | Found Faulty Cep. Tactical Fusion Warhead 30307 | -2/Protoforge | Found Prototype Launcher 30314 | -2/Protoforge | Found Faulty Cep. Arcsight Missile Launcher 30383 | -2/Protoforge | First assault squad dispatched 30407 | -2/Protoforge | Incoming assault squad redirected 30420 | -2/Protoforge | Spotted Immortal 30436 | -2/Protoforge | Destroyed Immortal 30439 | -2/Protoforge | Spotted Decapitator 30439 | -2/Protoforge | Spotted Decapitator 30453 | -2/Protoforge | Destroyed Immortal 30520 | -2/Protoforge | System corruption reached 30% 30528 | -2/Protoforge | Found Faulty Cep. Variable Chargecaster 30533 | -2/Protoforge | Found Faulty Cep. Variable Chargecaster 30545 | -2/Protoforge | Found Faulty Cep. Variable Chargecaster 30550 | -2/Protoforge | Found Cep. Variable Chargecaster 30563 | -2/Protoforge | Found Faulty Cep. XC Strikerail 30565 | -2/Protoforge | Found Faulty Cep. XC Strikerail 30589 | -2/Protoforge | Terminal network hard line cut 30658 | -2/Protoforge | Incoming assault squad redirected 30659 | -2/Protoforge | Found Cep. Lightning Penetrator 30670 | -2/Protoforge | Found Faulty Cep. XC Strikerail 30680 | -2/Protoforge | Found Faulty Cep. XC Strikerail 30705 | -2/Protoforge | Identified Cep. Smart ZDS 30706 | -2/Protoforge | Destroyed Decapitator 30706 | -2/Protoforge | Destroyed Decapitator 30904 | -2/Protoforge | Found Faulty Exp. Force Field 30969 | -2/Protoforge | Found Prototype Energy Cannon 30969 | -2/Protoforge | Identified Cep. Plasma Driver 30977 | -2/Protoforge | Found Faulty Cep. Plasma Driver 30979 | -2/Protoforge | Found Faulty Cep. Plasma Driver 31078 | -2/Protoforge | Incoming assault squad redirected 31119 | -2/Protoforge | Destroyed 11 combat bots 31139 | -2/Protoforge | Forge Plexus network access discovered 31162 | -2/Protoforge | Incoming assault squad redirected 31196 | -2/Protoforge | Spotted Decapitator 31196 | -2/Protoforge | Spotted Decapitator 31196 | -2/Protoforge | Spotted V017-z 31196 | -2/Protoforge | Spotted V933-s 31213 | -2/Protoforge | Destroyed V017-z 31217 | -2/Protoforge | Destroyed V933-s 31217 | -2/Protoforge | Spotted Decapitator 31221 | -2/Protoforge | Destroyed Decapitator 31227 | -2/Protoforge | Destroyed Decapitator 31231 | -2/Protoforge | Destroyed Decapitator 31258 | -2/Protoforge | Found Cep. Chromion Battery 31296 | -2/Protoforge | Found Cep. Antigrav Storage Unit 31301 | -2/Protoforge | Found Cep. Matter Streamer 31304 | -2/Protoforge | Found Cep. Chromion Battery 31332 | -2/Protoforge | Found Cep. Chromion Battery 31364 | -2/Protoforge | Found Femtoactuators 31468 | -2/Protoforge | Spotted Decapitator 31483 | -2/Protoforge | Spotted Decapitator 31483 | -2/Protoforge | Spotted Decapitator 31483 | -2/Protoforge | Spotted Decapitator 31488 | -2/Protoforge | Destroyed Decapitator 31488 | -2/Protoforge | Destroyed Decapitator 31488 | -2/Protoforge | Destroyed Decapitator 31488 | -2/Protoforge | Destroyed Decapitator 31537 | -2/Protoforge | Found Cep. Zero-point Core 31549 | -2/Protoforge | Found Prototype Device 31549 | -2/Protoforge | Identified Exp. Weapon Cycler 31551 | -2/Protoforge | Spotted V524-p 31583 | -2/Protoforge | Spotted V473-r 31592 | -2/Protoforge | Destroyed V473-r 31594 | -2/Protoforge | Spotted V759-v 31595 | -2/Protoforge | Destroyed V759-v 31627 | -2/Protoforge | Found Unknown Protection 31628 | -2/Protoforge | Identified Adv. Powered Armor 31631 | -2/Protoforge | Destroyed 8 combat bots 31661 | -2/Protoforge | Incoming assault squad redirected 31663 | -2/Protoforge | Build established: Scavenger-Executioner 31691 | -2/Protoforge | Spotted V850-q 31707 | -2/Protoforge | Destroyed V850-q 31740 | -2/Protoforge | Found Faulty Cep. Zero-point Core 31744 | -2/Protoforge | Found Cep. Zero-point Core 32002 | -2/Protoforge | Found Faulty Cep. Biometal Exoskeleton 32010 | -2/Protoforge | Found Faulty Cep. Biometal Exoskeleton 32137 | -2/Protoforge | Destroyed AP7-3 32140 | -2/Protoforge | Destroyed AP7-3 32154 | -2/Protoforge | Incoming assault squad redirected 32157 | -2/Protoforge | Incoming assault squad redirected 32189 | -2/Protoforge | Destroyed 7 combat bots 32224 | -2/Protoforge | Found Cep. XC Strikerail 32243 | -2/Protoforge | Found Cep. Core Analysis Suite 32249 | -2/Protoforge | Found Cep. Thermoelectric Network 32258 | -2/Protoforge | Found Cep. Cloak Mesh 32263 | -2/Protoforge | Found Cep. Cloak Mesh 32399 | -2/Protoforge | Incoming assault squad redirected 32454 | -2/Protoforge | Spotted Immortal 32473 | -2/Protoforge | Destroyed Immortal 32506 | -2/Protoforge | Spotted V221-e 32514 | -2/Protoforge | Found Prototype Hackware 32547 | -2/Protoforge | Found Prototype Hackware 32755 | -2/Protoforge | Spotted V761-s 32761 | -2/Protoforge | Spotted V754-p 32781 | -2/Protoforge | Found Cep. Countertargeting System 32785 | -2/Protoforge | Found Mni. Quantum Capacitor 32795 | -2/Protoforge | Found Cep. Networked Targeting System 32898 | -2/Protoforge | Incoming assault squad redirected 32909 | -2/Protoforge | Incoming assault squad redirected 33043 | -2/Protoforge | Additional patrols dispatched to research labs 33130 | -2/Protoforge | Found Transdimensional Reconstructor 33132 | -2/Protoforge | Warped through subspace to slip node 33154 | -2/Protoforge | Incoming assault squad redirected 33156 | -2/Protoforge | Incoming assault squad redirected 33161 | -2/Protoforge | Incoming assault squad redirected 33216 | -2/Protoforge | Spotted Hotshot 33220 | -2/Protoforge | Spotted Hotshot 33220 | -2/Protoforge | Spotted Hotshot 33220 | -2/Protoforge | Spotted Hotshot 33227 | -2/Protoforge | Destroyed Hotshot 33227 | -2/Protoforge | Destroyed Hotshot 33232 | -2/Protoforge | High security lockdown imminent 33232 | -2/Protoforge | Destroyed Hotshot 33235 | -2/Protoforge | Destroyed Hotshot 33238 | -2/Protoforge | Spotted Overlord 33274 | -2/Protoforge | Spotted Hotshot 33274 | -2/Protoforge | Spotted Hotshot 33275 | -2/Protoforge | Spotted Hotshot 33275 | -2/Protoforge | Spotted Hotshot 33279 | -2/Protoforge | Spotted Striker 33279 | -2/Protoforge | Spotted Striker 33287 | -2/Protoforge | Identified exit to Access 33288 | -2/Protoforge | Entered Access 33288 | -1/Access | Evolved 2 slots: Power x1, Propulsion x1 33340 | -1/Access | High security lockdown imminent 33389 | -1/Access | Destroyed 8 combat bots 33420 | -1/Access | High security lockdown engaged 33424 | -1/Access | Spotted Executioner 33426 | -1/Access | Spotted Executioner 33439 | -1/Access | Destroyed Executioner 33447 | -1/Access | Destroyed Executioner 33467 | -1/Access | Found Prototype Device 33467 | -1/Access | Identified Adv. Kinecellerator 33659 | -1/Access | Spotted Investigator 33717 | -1/Access | Destroyed Investigator 33779 | -1/Access | Found Prototype Launcher 33779 | -1/Access | Identified Point Singularity Launcher 33886 | -1/Access | Warped through subspace 33897 | -1/Access | Spotted B-99 Colossus 33916 | -1/Access | Destroyed B-99 Colossus 33951 | -1/Access | Spotted Striker 33957 | -1/Access | Destroyed Striker 33975 | -1/Access | Spotted Executioner 33977 | -1/Access | Spotted Executioner 33981 | -1/Access | Warped through subspace 34048 | -1/Access | Garrison activated, responded to threat 34057 | -1/Access | Lost 4 parts (1n1u2w) 34124 | -1/Access | Destroyed 10 combat bots 34159 | -1/Access | Spotted Striker 34164 | -1/Access | Destroyed Striker 34460 | -1/Access | Build established: Scavenger-Mutant 34481 | -1/Access | Spotted Executioner 34496 | -1/Access | Spotted Striker 34497 | -1/Access | Spotted Striker 34501 | -1/Access | Destroyed Striker 34508 | -1/Access | Destroyed Executioner 34514 | -1/Access | Destroyed Striker 34515 | -1/Access | System corruption reached 10% 34520 | -1/Access | Spotted Striker 34532 | -1/Access | Destroyed Striker 34550 | -1/Access | Identified Cep. Network Penetrator (x2) 34557 | -1/Access | Core integrity fell below 50% 34567 | -1/Access | Spotted Striker 34567 | -1/Access | Spotted Striker 34568 | -1/Access | Emitted hypermatrix ping 34569 | -1/Access | Destroyed 33 combat bots 34573 | -1/Access | Assembled emerged from beneath the floor 34573 | -1/Access | Core integrity fell below 20% 34581 | -1/Access | Destroyed by P-80 Master with Gamma Rifle Last Messages --------------- 34573_ L-61 Swordsman unfolds itself. 34573_ E-15 Imp unfolds itself. 34573_ G-73 Enforcer unfolds itself. 34574_ as-66069 destroyed. 34575_ System corrupted: Component data lost. 34575_ The unstable cave ceiling collapses. 34575_ Slug penetrates as-90342. 34575_ Slug penetrates L-61 Swordsman. 34575_ as-04738 destroyed. 34575_ Slammed into B-74 Champion. 34576_ The unstable cave ceiling collapses. 34576_ K-01 Serf collects debris. 34576_ as-66892 destroyed. 34576_ Slammed into L-61 Swordsman. 34577_ Slammed into G-73 Enforcer. 34578_ as-34982 destroyed. 34578_ Extracted 1 energy. 34579_ Acquired 4 matter. 34580_ Acquired 2 matter. 34580_ K-01 Serf collects debris. Map ----- +----------------------------------------------------+ | ?????????????????????????????????? | | #####################????????????? | | ???????????? | | ### ???????????? | | ??# ???????????? | | ??# !!! ]]] ???????????? | | ??# !!! ]]] ???????????? | | ### !!! ]]] ???????????? | | ???????????? | | ###########????????????? | | #?????????? ???????????? | | #?????????# ???????????? | | #??????? ?#w???????????? | | #??????? # #??????????? | | #???????? + ??????????? | | ###+##### #?????????# ??????????? | | # #?? #????????## ########??? | | # #?? #?#??????# #??? | | # #?? ## ###### #??? | | #! +?? ? %g Y #??? | | # #?? #?# g ig #??? | | # #??###?# %bg i ! =!#??? | | # #??????# bg| %[ =###? | | # ######## gg%l]%!lg ## | | # + "% g p/KYl ! # | | # = ##### ##########;*!@g# ##= | | # #???# #???????# %K##b b | | # #???# #???????# #/## ]#b # | | #######???#/#########?#=## #l ## # | | ??????????# "####/####=k | | ??????????# # %]![=![== | | ??????????# [!!!#*=### | | ??????????# # !!!#*##?? | | ??????????# * # !!!+ #??? | | ??????????# # =!# #??? | | ???????#### # *! # #??? | | ??????# + "%"= ! ! #=#??? | | ??????????# # #!#??? | | ??????????# # ## ## ###? | | ??????????# # " #? | | ??????????###+##"### # #####"###? | | ??????????# # ## #??# ## | | ?????????## ##"####"#""# | | ?????????+ ## # | | ?????????## ##/ # | | ??????????# // ## == # | | ??????????# // ## =* # | | ??????????# / + =* # | | ??????????# # # | | ??????????# # # | +----------------------------------------------------+ Best States ------------- Heat Dissipation 159 Energy Generation 124 Energy Capacity 1650 Matter Stores 1500 Matter Capacity 1800 Sight Range 20 Robot Scan Range 20 Terrain Scan Range 20 Terrain Scan Density 85 Jamming Range 16 Cloak Strength 9 Power Amplification 30 Base Temperature (-) 200 Armor Coverage 1075 Resistance: KI 30 Resistance: EM 20 Weapon Shielding 100 Weapon Cycling 30 Evasion (%) 82 Targeting Accuracy 12 Core Analysis 11 Recoil Reduction 4 Kinecelleration 50 Offensive Hacking 50 Defensive Hacking 10 Authchip Count 1 Item Schematics ----------------- Adv. Transmission Jammer | -3/Quarantine | Z-intel Imp. Kinecellerator | -3/Quarantine | Z-intel Imp. Fusion Compressor | -3/Quarantine | Z-intel Field Propulsion Drive | -3/Quarantine | Z-intel Hvy. Gauss Cannon | -3/Quarantine | Z-intel Adv. Recalibrator | -3/Quarantine | Z-intel Core Analyzer | -3/Quarantine | Z-intel Imp. Armor Integrity Analyzer | -3/Quarantine | Z-intel Adv. Datajack | -3/Quarantine | Z-intel Imp. Gyrokinetic Inverter | -3/Quarantine | Z-intel Hvy. Hammer | -3/Quarantine | Z-intel Phase Gun | -3/Quarantine | Z-intel Adv. Signal Interpreter | -3/Quarantine | Z-intel Power Amplifier | -3/Quarantine | Z-intel Imp. Launcher Guidance Computer | -3/Quarantine | Z-intel Hyp. Mass Driver | -3/Quarantine | Z-intel Hvy. Tesla Rifle | -2/Testing | Archive Cld. Linear Gravjet | -2/Testing | Archive Enh. Biometal Leg | -2/Testing | Archive Adv. Particle Accelerator | -2/Protoforge | Archive Imp. Matter Neutralizer | -2/Protoforge | Archive Com. Tesla Bomb Launcher | -2/Protoforge | Archive Imp. Quantum Reactor | -2/Protoforge | Archive Imp. Q-thruster | -2/Protoforge | Archive Robot Schematics ------------------ A-27 Freighter | -2/Protoforge | Archive A-02 Transporter | -2/Protoforge | Archive Fabricated ------------ HERF Cannon | x2 | -6/Factory | Preloaded Exp. Targeting Computer | x1 | -6/Factory Exp. Sensor Array | x1 | -4/Factory | Authchip Repaired ---------- Exp. Sensor Array | 62% | -9/Materials | Broken Lgt. Treads | 21% | -7/Factory Hvy. Armored Exoskeleton | 58% | -5/Factory Adv. Cloaking Device | 10% | -5/Factory Adv. Cryofiber Web | 47% | -3/Quarantine Studied --------- Imp. Thunder Leg | -2/Research | Hacked Com. HERF Cannon | -2/Research | Hacked Biometal Leg | -2/Research | Hacked Particle Reactor | -2/Research | Hacked Centrium Leg | -2/Testing | Hacked Quantum Reactor | -2/Testing | Hacked Alien Tech Used ----------------- Integrated Reactor Core Reset Matrix Sigix Broadsword High-powered Transdimensional Reconstructor Dimensional Node Initializer Transdimensional Reconstructor Achievements -------------- None Challenges ------------ None Game ------ Seed DispersalAntigravWell Manual? 0 Play Time 05:26:38 Cumulative 386.0 hours Start 2025.11.11 @ 11:30:45 End 2025.11.11 @ 23:52:01 Sessions 3 Manual Loads 0 Difficulty Rogue Special Mode None Game No. 124 Rogue 124 Adventurer 0 Explorer 0 Win Type - Total 9 Types 3/0/4/0/0/0/1/0/0/1 Lore% 78 Gallery% 85 Achievement% 69 Wizard Run 0 Options --------- Layout 1 ASCII 0 Keyboard 1 Movement Arrows Keybinds 0 Fullscreen 1 Font 24/Smallcaps Map View 50x35 Zoom Use 0% Tactical HUD 1 Map Filters NONE Filters NONE Steam 1 RUN: 03f09034-3ae1-40e6-8a9a-2e403d608a4b